Workbook

Sheet AER only (hidden)
B1: Data in these columns used for data validation and database purposes.
B2: Date last modified: | C2: 2017-01-16 | D2: added (Albury and Victora) for AGN
C3: 2016-10-17 | D3: updated TransGrid's correct legal name, corrected TasNetworks (T) to June financial year
C4: 2017-02-01 | D4: inserted Power and Water, added NRs (dms_FeederCat_1 and dms_FeederCat_2)
C5: 2017-03-03 | D5: inserted AEMO as a business | AC5: FOR ELECTRICITY BUSINESSES ONLY
AC6: Feeder Types | AG6: TasNetworks (D) | AH6: MAIFI flag | AI6: Feeder Names
AC7: CBD | AD7: Urban | AE7: Short rural | AF7: long rural | AG7: EXTRA
B8: dms_TradingName_List | C8: dms_TradingNameFull_List | D8: dms_ABN_List | E8: dms_JurisdictionList | F8: dms_Sector_List | G8: dms_Segment_List | H8: dms_FormControl_List | I8: dms_RPT_List | J8: dms_RPTMonth_List | K8: dms_CRCPlength_List | L8: dms_FRCPlength_List | M8: dms_663_List | N8: dms_DeterminationRef_List | O8: dms_Addr1_List | P8: dms_Addr2_List | Q8: dms_Suburb_List | R8: dms_State_List | S8: dms_PostCode_List | T8: dms_PAddr1_List | U8: dms_PAddr2_List | V8: dms_PSuburb_List | W8: dms_PState_List | X8: dms_PPostCode_List | Y8: dms_ContactName1_List | Z8: dms_ContactPh1_List | AA8: dms_ContactEmail_List | AB8: Column1 | AC8: dms_CBD_flag | AD8: dms_Urban_flag | AE8: dms_ShortRural_flag | AF8: dms_LongRural_flag | AG8: dms_FeederType_5_flag | AH8: dms_MAIFI_flag_List | AI8: dms_FeederName_1 | AJ8: dms_FeederName_2 | AK8: dms_FeederName_3 | AL8: dms_FeederName_4 | AM8: dms_FeederName_5
B9: ActewAGL Distribution | C9: ActewAGL Distribution | D9: 76670568688 | E9: ACT | F9: Electricity | G9: Distribution | H9: Revenue cap | I9: Financial | J9: June | K9: 5 | L9: 5 | M9: 5 | N9: 2014-19 Distribution Determination | O9: 40 Bunda Street | Q9: CANBERRA | R9: ACT | S9: 2600 | T9: GPO BOX 366 | V9: CANBERRA | W9: ACT | X9: 2601 | Y9: Robert Walker | Z9: 02 6248 3847 | AA9: robert.walker@actewagle.com.au | AC9: NO | AD9: YES | AE9: YES | AF9: NO | AG9: NO | AI9: CBD | AJ9: Urban | AK9: Short rural | AL9: Long rural | AN9: ActewAGL Distribution
B10: ActewAGL Distribution (Tx Assets) | C10: ActewAGL Distribution (Tx Assets) | D10: 76670568688 | E10: ACT | F10: Electricity | G10: Distribution | H10: Revenue cap | I10: Financial | J10: June | K10: 5 | L10: 5 | M10: 5 | N10: distribution determination | O10: 40 Bunda Street | Q10: CANBERRA | R10: ACT | S10: 2600 | T10: GPO BOX 366 | V10: CANBERRA | W10: ACT | X10: 2601 | Y10: Robert Walker | Z10: 02 6248 3847 | AA10: robert.walker@actewagle.com.au | AI10: CBD | AJ10: Urban | AK10: Short rural | AL10: Long rural | AN10: ActewAGL Distribution (Tx Assets)
B11: ActewAGL Gas | C11: ActewAGL Gas | D11: 76670568688 | E11: ACT | F11: Gas | G11: Distribution | H11: Weighted average price cap | I11: Financial | J11: June | K11: 5 | L11: 5 | M11: x | O11: 40 Bunda Street | Q11: CANBERRA | R11: ACT | S11: 2600 | T11: GPO BOX 366 | V11: CANBERRA | W11: ACT | X11: 2601 | Y11: Philip Deamer | Z11: 02 6248 3438 | AA11: GasAAReview@actewagl.com.au | AN11: ActewAGL Gas
B12: AEMO | C12: Australian Energy Market Operator Ltd | D12: 94072010327 | E12: Vic | F12: Electricity | G12: Transmission | H12: - | I12: Financial | J12: March | K12: 5 | L12: 5 | M12: x | N12: - | O12: Level 22 | P12: 530 Collins Street | Q12: MELBOURNE | R12: VIC | S12: 3000 | T12: GPO Box 2008 | V12: MELBOURNE | W12: VIC | X12: 3001 | AN12: AEMO
B13: AGN (Albury and Victoria) | C13: Australian Gas Networks Limited (reporting data for Albury and Victoria) | D13: 19078551685 | E13: Vic | F13: Gas | G13: Distribution | H13: Weighted average price cap | I13: Calendar | J13: December | K13: 5 | L13: 5 | M13: x | O13: Level 6 | P13: 400 King William Street | Q13: ADELAIDE | R13: SA | S13: 5000 | T13: PO Box 6468 | U13: Halifax Street | V13: ADELAIDE | W13: SA | X13: 5000 | Y13: Craig de Laine | Z13: 08 8418 1129 | AA13: craig.delaine@agn.com.au | AI13: CBD | AJ13: Urban | AK13: Short rural | AL13: Long rural | AN13: AGN (Albury)
B14: AGN (Albury) | C14: Australian Gas Networks Limited (reporting data for Albury) | D14: 19078551685 | E14: Vic | F14: Gas | G14: Distribution | H14: Weighted average price cap | I14: Calendar | J14: December | K14: 5 | L14: 5 | M14: x | O14: Level 6 | P14: 400 King William Street | Q14: ADELAIDE | R14: SA | S14: 5000 | T14: PO Box 6468 | U14: Halifax Street | V14: ADELAIDE | W14: SA | X14: 5000 | Y14: Craig de Laine | Z14: 08 8418 1129 | AA14: craig.delaine@agn.com.au | AI14: CBD | AJ14: Urban | AK14: Short rural | AL14: Long rural
B15: AGN (SA) | C15: Australian Gas Networks Limited (reporting data for SA) | D15: 19078551685 | E15: SA | F15: Gas | G15: Distribution | H15: Weighted average price cap | I15: Financial | J15: June | K15: 5 | L15: 5 | M15: 5 | N15: distribution determination | O15: Level 6 | P15: 400 King William Street | Q15: ADELAIDE | R15: SA | S15: 5000 | T15: PO Box 6468 | U15: Halifax Street | V15: ADELAIDE | W15: SA | X15: 5000 | Y15: Craig de Laine | Z15: 08 8418 1129 | AA15: craig.delaine@agn.com.au | AN15: AGN (SA)
B16: AGN (Victoria) | C16: Australian Gas Networks Limited (reporting data for Victoria) | D16: 19078551685 | E16: Vic | F16: Gas | G16: Distribution | H16: Weighted average price cap | I16: Calendar | J16: December | K16: 5 | L16: 5 | M16: x | AN16: AGN (Victoria)
B17: Amadeus | C17: APT Pipelines (NT) Pty Ltd | D17: 39009737393 | E17: NT | F17: Gas | G17: Transmission | H17: Weighted average price cap | I17: Financial | J17: June | K17: 5 | L17: 5 | M17: x | N17: n/a | O17: Level 19, HSBC Building | P17: 580 George Street | Q17: SYDNEY | R17: NSW | S17: 2000 | T17: Level 19, HSBC Building | U17: 580 George Street | V17: SYDNEY | W17: NSW | X17: 2000 | Y17: Alexandra Curran | Z17: 02 9275 0020 | AA17: alexandra.curran@apa.com.au | AN17: Amadeus
B18: APA GasNet | C18: APA GasNet Australia (Operations) Pty Ltd | D18: 065083009 | E18: Vic | F18: Gas | G18: Transmission | H18: Weighted average price cap | I18: Calendar | J18: December | K18: 5 | L18: 5 | M18: x | O18: Level 19, HSBC Building | P18: 580 George Street | Q18: SYDNEY | R18: NSW | S18: 2000 | T18: PO Box R41 | V18: ROYAL EXCHANGE | W18: NSW | X18: 1225 | Z18: 02 9693 0000 | AN18: APA GasNet
B19: Ausgrid | C19: Ausgrid | D19: 78508211731 | E19: NSW | F19: Electricity | G19: Distribution | H19: Revenue cap | I19: Financial | J19: June | K19: 5 | L19: 5 | M19: 5 | N19: 2014-19 Distribution Determination | O19: 570 George St | Q19: SYDNEY | R19: NSW | S19: 2000 | T19: GPO Box 4009 | V19: SYDNEY | W19: NSW | X19: 2001 | Y19: John Thomson | Z19: (02) 9269 2312 | AA19: john.thomson@ausgrid.com.au | AC19: YES | AD19: YES | AE19: YES | AF19: YES | AG19: NO | AI19: CBD | AJ19: Urban | AK19: Short rural | AL19: Long rural | AN19: Ausgrid
B20: Ausgrid (Tx Assets) | C20: Ausgrid (Tx Assets) | D20: 67505337385 | E20: NSW | F20: Electricity | G20: Distribution | H20: Revenue cap | I20: Financial | J20: June | K20: 5 | L20: 5 | M20: 5 | N20: distribution determination | R20: NSW | AI20: CBD | AJ20: Urban | AK20: Short rural | AL20: Long rural | AN20: Ausgrid (Tx Assets)
B21: AusNet (D) | C21: AusNet Electricity Services Pty Ltd | D21: 91064651118 | E21: Vic | F21: Electricity | G21: Distribution | H21: Revenue cap | I21: Calendar | J21: December | K21: 5 | L21: 5 | M21: 2 | N21: 2016-20 Distribution Determination | O21: Level 32 | P21: 2 Southbank Boulevard | Q21: SOUTHBANK | R21: Vic | S21: 3006 | T21: Locked Bag 14051 | V21: MELBOURNE CITY MAIL CENTRE | W21: VIC | X21: 8001 | Y21: Hannah Williams | Z21: 03 9683 4088 | AA21: hwilliams@powercor.com.au | AD21: YES | AE21: YES | AF21: YES | AG21: NO | AI21: CBD | AJ21: Urban | AK21: Short rural | AL21: Long rural | AN21: AusNet (D)
B22: AusNet (Gas) | C22: AusNet Gas Services | D22: 086015036 | E22: Vic | F22: Gas | G22: Distribution | H22: Weighted average price cap | I22: Calendar | J22: December | K22: 5 | L22: 5 | M22: X | AN22: AusNet (Gas)
B23: AusNet (T) | C23: Ausnet Services (Transmission) Ltd | D23: 48116124362 | E23: Vic | F23: Electricity | G23: Transmission | H23: Revenue cap | I23: Financial | J23: March | K23: 5 | L23: 5 | M23: 2 | N23: transmission determination | O23: Level 32 | P23: 2 Southbank Boulevard | Q23: SOUTHBANK | R23: Vic | S23: 3006 | T23: Locked Bag 14051 | V23: MELBOURNE CITY MAIL CENTRE | W23: Vic | X23: 8001 | Y23: Clare Thompson | Z23: 03 9695 6670 | AA23: clare.e.thompson@ausnetservices.com.au | AI23: CBD | AJ23: Urban | AK23: Short rural | AL23: Long rural | AN23: AusNet (T)
B24: Australian Distribution Co. | C24: Australian Distribution Co. | D24: 11222333444 | E24: - | F24: Electricity | G24: Distribution | H24: Revenue cap | I24: Financial | J24: June | K24: 5 | L24: 5 | M24: 2 | N24: distribution determination | O24: 123 Straight Street | Q24: SYDNEY | R24: NSW | S24: 2000 | T24: PO Box 123 | V24: SYDNEY | W24: NSW | X24: 2000 | Y24: Bob Smith | Z24: 02 1234 5678 | AA24: bob@auselec.net.au | AI24: CBD | AJ24: Urban | AK24: Short rural | AL24: Long rural | AN24: Australian Distribution Co.
B25: Australian Distribution Co. (Vic) | C25: Australian Distribution Co. (Victoria) | D25: 11222333444 | E25: Vic | F25: Electricity | G25: Distribution | H25: Revenue cap | I25: Calendar | J25: December | K25: 5 | L25: 5 | M25: 2 | N25: distribution determination | O25: 123 Straight Street | Q25: MELBOURNE | R25: Vic | S25: 3000 | T25: PO Box 123 | V25: MELBOURNE | W25: VIC | X25: 3000 | Y25: Bob Smith | Z25: 02 1234 5678 | AA25: bob@auselec.net.au | AI25: CBD | AJ25: Urban | AK25: Short rural | AL25: Long rural | AN25: Australian Distribution Co. (Vic)
B26: Australian Transmission Co. | C26: Australian Transmission Co. | D26: 11222333444 | E26: - | F26: Electricity | G26: Transmission | H26: Revenue cap | I26: Financial | J26: June | K26: 5 | L26: 5 | M26: 5 | N26: transmission determination | O26: 123 Straight Street | Q26: SYDNEY | R26: NSW | S26: 2000 | T26: PO Box 123 | V26: SYDNEY | W26: NSW | X26: 2000 | Y26: Bob Smith | Z26: 02 1234 5678 | AA26: bob@auselec.net.au | AI26: CBD | AJ26: Urban | AK26: Short rural | AL26: Long rural | AN26: Australian Transmission Co.
B27: CitiPower | C27: CitiPower | D27: 76064651056 | E27: Vic | F27: Electricity | G27: Distribution | H27: Revenue cap | I27: Calendar | J27: December | K27: 5 | L27: 5 | M27: 2 | N27: 2016-20 Distribution Determination | O27: 40 Market Street | Q27: MELBOURNE | R27: Vic | S27: 3000 | T27: Locked Bag 14090 | V27: MELBOURNE | W27: VIC | X27: 8001 | Y27: Hannah Williams | Z27: 03 9683 4088 | AA27: hwilliams@powercor.com.au | AC27: YES | AD27: YES | AE27: NO | AF27: NO | AG27: NO | AI27: CBD | AJ27: Urban | AK27: Short rural | AL27: Long rural | AN27: CitiPower
B28: Directlink | C28: Directlink | D28: 16779340889 | E28: Qld | F28: Electricity | G28: Transmission | H28: Revenue cap | I28: Financial | J28: June | K28: 9 | L28: 5 | M28: 5 | N28: transmission determination | O28: Level 19, HSBC Building | P28: 580 George Street | Q28: SYDNEY | R28: NSW | S28: 2000 | T28: PO Box R41 | V28: ROYAL EXCHANGE | W28: NSW | X28: 1225 | Y28: Scott Young | Z28: 02 9275 0031 | AA28: scott.young@apa.com.au | AI28: CBD | AJ28: Urban | AK28: Short rural | AL28: Long rural | AN28: Directlink
B29: ElectraNet | C29: ElectraNet | D29: 41094482416 | E29: SA | F29: Electricity | G29: Transmission | H29: Revenue cap | I29: Financial | J29: June | K29: 5 | L29: 5 | M29: 5 | N29: transmission determination | O29: 52-55 East Terrace | P29: Rymill Park | Q29: ADELAIDE | R29: SA | S29: 5000 | T29: PO Box 7096 | U29: Hutt Street Post Office | V29: ADELAIDE | W29: SA | X29: 5000 | Y29: Bill Jackson | Z29: 08 8404 7969 | AA29: jackson.bill@electranet.com.au | AI29: CBD | AJ29: Urban | AK29: Short rural | AL29: Long rural | AN29: ElectraNet
B30: Endeavour Energy | C30: Endeavour Energy | D30: 59253130878 | E30: NSW | F30: Electricity | G30: Distribution | H30: Revenue cap | I30: Financial | J30: June | K30: 5 | L30: 5 | M30: 5 | N30: 2014-19 Distribution Determination | O30: 51 Huntingwood Drive | Q30: HUNTINGWOOD | R30: NSW | S30: 2148 | T30: PO Box 811 | V30: SEVEN HILLS | W30: NSW | X30: 1730 | Y30: Jon Hocking | Z30: 02 9853 4386 / 0407 348 156 | AA30: Jon.Hocking@Endeavourenergy.com.au | AC30: NO | AD30: YES | AE30: YES | AF30: YES | AG30: NO | AI30: CBD | AJ30: Urban | AK30: Short rural | AL30: Long rural | AN30: Endeavour Energy
B31: Energex | C31: Energex | D31: 40078849055 | E31: Qld | F31: Electricity | G31: Distribution | H31: Revenue cap | I31: Financial | J31: June | K31: 5 | L31: 5 | M31: 5 | N31: 2015-20 Distribution Determination | O31: 26 Reddacliff Street | Q31: NEWSTEAD | R31: Qld | S31: 4006 | T31: 26 Reddacliff Street | V31: NEWSTEAD | W31: QLD | X31: 4006 | Y31: Nicola Roscoe | Z31: 07 3664 5891 | AA31: nicolaroscoe@energex.com.au | AC31: YES | AD31: YES | AE31: YES | AF31: NO | AG31: NO | AI31: CBD | AJ31: Urban | AK31: Short rural | AL31: Long rural | AN31: Energex
B32: Ergon Energy | C32: Ergon Energy | D32: 50087646062 | E32: Qld | F32: Electricity | G32: Distribution | H32: Revenue cap | I32: Financial | J32: June | K32: 5 | L32: 5 | M32: 5 | N32: 2015-20 Distribution Determination | O32: 22 Walker Street | Q32: TOWNSVILLE | R32: Qld | S32: 4810 | T32: Po Box 264 | V32: FORTITUDE VALLEY | W32: QLD | X32: 4006 | Y32: Jenny Doyle, Group Manager Regulatory Affairs | Z32: (07) 3851 6416 | AA32: jenny.doyle@ergon.com.au | AC32: NO | AD32: YES | AE32: YES | AF32: YES | AG32: NO | AI32: CBD | AJ32: Urban | AK32: Short rural | AL32: Long rural | AN32: Ergon Energy
B33: Essential Energy | C33: Essential Energy | D33: 37428185226 | E33: NSW | F33: Electricity | G33: Distribution | H33: Revenue cap | I33: Financial | J33: June | K33: 5 | L33: 5 | M33: 5 | N33: 2014-19 Distribution Determination | O33: 8 Buller Street | Q33: PORT MACQUARIE | R33: NSW | S33: 2444 | T33: PO Box 5730 | V33: PORT MACQUARIE | W33: NSW | X33: 2444 | Y33: Catherine Waddell | Z33: 02 6338 3553 | AA33: catherine.waddell@essentialenergy.com.au | AE33: YES | AF33: YES | AG33: NO | AI33: CBD | AJ33: Urban | AK33: Short rural | AL33: Long rural | AN33: Essential Energy
B34: Jemena Electricity | C34: Jemena Electricity | D34: 82064651083 | E34: Vic | F34: Electricity | G34: Distribution | H34: Revenue cap | I34: Calendar | J34: December | K34: 5 | L34: 5 | M34: 2 | N34: 2016-20 Distribution Determination | O34: Level 16 | P34: 567 Collins Street | Q34: MELBOURNE | R34: VIC | S34: 3000 | T34: PO Box 16182 | V34: MELBOURNE | W34: VIC | X34: 8001 | Y34: Matthew Serpell | Z34: 03 9173 8231 | AA34: matthew.serpell@jemena.com.au | AE34: YES | AF34: NO | AG34: NO | AI34: CBD | AJ34: Urban | AK34: Short rural | AL34: Long rural | AN34: Jemena Electricity
B35: JGN | C35: Jemena Gas Networks (NSW) Ltd | D35: 003 004 322 | E35: NSW | F35: Gas | G35: Distribution | H35: Weighted average price cap | I35: Financial | J35: June | K35: 5 | L35: 5 | AN35: JGN
B36: Multinet Gas | C36: Multinet Gas (DB No.1) Pty Ltd (ACN 086 026 986), Multinet Gas (DB No.2) Pty Ltd (ACN 086 230 122) | D36: 086026986 | E36: Vic | F36: Gas | G36: Distribution | H36: Weighted average price cap | I36: Calendar | J36: December | K36: 5 | L36: 5 | M36: x | O36: 6 Nexus Court | Q36: MULGRAVE | R36: Vic | S36: 3149 | Y36: Stephanie McDougall | Z36: 03 8846 9538 | AA36: Stephanie.McDougall@ue.com.au | AN36: Multinet Gas
B37: Murraylink | C37: Murraylink | D37: 79181207909 | E37: SA | F37: Electricity | G37: Transmission | H37: Revenue cap | I37: Financial | J37: June | K37: 5 | L37: 5 | M37: 5 | N37: transmission determination | AI37: CBD | AJ37: Urban | AK37: Short rural | AL37: Long rural | AN37: Murraylink
B38: Power and Water | C38: Power and Water Corporation | D38: 15947352360 | E38: NT | F38: Electricity | G38: Distribution | H38: Revenue cap | I38: Financial | J38: June | K38: 5 | L38: 5 | M38: x | N38: distribution determination | O38: GPO Box 1921 | Q38: DARWIN | R38: NT | S38: 0801 | T38: GPO Box 1921 | V38: DARWIN | W38: NT | X38: 0801 | Y38: Lucy Moon | Z38: 08 8924 5822 | AA38: Lucy.Moon@powerwater.com.au | AC38: YES | AD38: YES | AE38: YES | AF38: YES | AG38: NO
B39: Powercor Australia | C39: Powercor Australia | D39: 89064651109 | E39: Vic | F39: Electricity | G39: Distribution | H39: Revenue cap | I39: Calendar | J39: December | K39: 5 | L39: 5 | M39: 2 | N39: 2016-20 Distribution Determination | O39: 40 Market Street | Q39: MELBOURNE | R39: Vic | S39: 3000 | T39: Locked bag 14090 | V39: MELBOURNE | W39: VIC | X39: 8001 | Y39: Hannah Williams | Z39: 03 9683 4088 | AA39: hwilliams@powercor.com.au | AE39: YES | AF39: YES | AG39: NO | AI39: CBD | AJ39: Urban | AK39: Short rural | AL39: Long rural | AN39: Powercor Australia
B40: Powerlink | C40: Queensland Electricity Transmission Corporation Limited trading as Powerlink Queensland | D40: 82078849233 | E40: Qld | F40: Electricity | G40: Transmission | H40: Revenue cap | I40: Financial | J40: June | K40: 5 | L40: 5 | M40: 5 | N40: transmission determination | O40: 33 Harold St | Q40: VIRGINIA | R40: Qld | S40: 4014 | T40: PO Box 1193 | V40: VIRGINIA | W40: QLD | X40: 4014 | Y40: Jennifer Harris | Z40: 07 3860 2667 | AA40: jharris@powerlink.com.au | AI40: CBD | AJ40: Urban | AK40: Short rural | AL40: Long rural | AN40: Powerlink
B41: Roma to Brisbane Pipeline | C41: APT Petroleum Pipelines Limited t/a Roma to Brisbane Pipeline | D41: 009 737 393 | E41: Qld | F41: Gas | G41: Transmission | H41: Weighted average price cap | I41: Financial | J41: June | K41: 5 | L41: 5 | M41: x | N41: n/a | O41: 580 George Street | Q41: SYDNEY | R41: NSW | S41: 2000 | T41: PO Box R41 | V41: ROYAL EXCHANGE | W41: NSW | X41: 1225 | Y41: Mark Allen | Z41: 02 9275 0010 | AA41: mark.allen@apa.com.au | AI41: CBD | AJ41: Urban | AK41: Short rural | AL41: Long rural | AN41: Roma to Brisbane Pipeline
B42: SA Power Networks | C42: SA Power Networks | D42: 13332330749 | E42: SA | F42: Electricity | G42: Distribution | H42: Revenue cap | I42: Financial | J42: June | K42: 5 | L42: 5 | M42: 5 | N42: 2015-20 Distribution Determination | O42: 1 Anzac Highway | Q42: KESWICK | R42: SA | S42: 5035 | T42: GPO Box 77 | V42: ADELAIDE | W42: SA | X42: 5000 | Y42: Richard Sibly | Z42: 08 8404 5613 | AA42: richard.sibly@sapowernetworks.com.au | AE42: YES | AF42: YES | AG42: NO | AI42: CBD | AJ42: Urban | AK42: Short rural | AL42: Long rural | AN42: SA Power Networks
B43: TasNetworks (D) | C43: TasNetworks (D) | D43: 24167357299 | E43: Tas | F43: Electricity | G43: Distribution | H43: Revenue cap | I43: Financial | J43: June | K43: 5 | L43: 5 | M43: 5 | N43: distribution determination | O43: 1-7 Maria Street | Q43: LENAH VALLEY | R43: Tas | S43: 7008 | T43: PO Box 606 | V43: MOONAH | W43: Tas | X43: 7009 | Y43: John Sayers | Z43: 03 6271 6469 | AA43: john.sayers@tasnetworks.com.au | AE43: YES | AF43: YES | AG43: YES | AI43: Critical Infrastructure | AJ43: High density commercial | AK43: Urban | AL43: High density rural | AM43: Low density rural | AN43: TasNetworks (D)
B44: TasNetworks (T) | C44: TasNetworks (T) | D44: 24167357299 | E44: Tas | F44: Electricity | G44: Transmission | H44: Revenue cap | I44: Financial | J44: June | K44: 5 | L44: 5 | M44: 5 | N44: transmission determination | O44: 1-7 Maria Street | Q44: LENAH VALLEY | R44: Tas | S44: 7008 | T44: PO Box 606 | V44: MOONAH | W44: Tas | X44: 7009 | Y44: John Sayers | Z44: 03 6271 6469 | AA44: john.sayers@tasnetworks.com.au | AI44: CBD | AJ44: Urban | AK44: Short rural | AL44: Long rural | AN44: TasNetworks (T)
B45: TransGrid | C45: NSW Electricity Networks Operations Pty Ltd trading as TransGrid | D45: 609169959 | E45: NSW | F45: Electricity | G45: Transmission | H45: Revenue cap | I45: Financial | J45: June | K45: 5 | L45: 4 | M45: 5 | N45: transmission determination | O45: 180 Thomas Street | Q45: SYDNEY | R45: NSW | S45: 2000 | T45: PO Box A1000 | V45: SYDNEY SOUTH | W45: NSW | X45: 1235 | Y45: Garrie Chubb | Z45: 0408 210 221 | AA45: garrie.chubb@transgrid.com.au | AI45: CBD | AJ45: Urban | AK45: Short rural | AL45: Long rural | AN45: TransGrid
B46: United Energy | C46: United Energy | D46: 70064651029 | E46: Vic | F46: Electricity | G46: Distribution | H46: Revenue cap | I46: Calendar | J46: December | K46: 5 | L46: 5 | M46: 2 | N46: 2016-20 Distribution Determination | O46: Level 3 | P46: 6 Nexus Court | Q46: MULGRAVE | R46: Vic | S46: 3149 | T46: PO Box 449 | V46: MOUNT WAVERLEY | W46: VIC | X46: 3170 | Y46: Mathew Abraham | Z46: 03 8846 9758 | AA46: mathew.abraham@ue.com.au | AE46: YES | AF46: NO | AG46: NO | AI46: CBD | AJ46: Urban | AK46: Short rural | AL46: Long rural | AN46: United Energy
B47: Western Power (D) | C47: Western Power (D) | D47: 18540492861 | E47: WA | F47: Electricity | G47: Distribution | H47: Revenue cap | I47: Financial | J47: June | K47: 12 | L47: 4 | M47: x | N47: distribution determination | O47: 363 Wellington Street | Q47: PERTH | R47: WA | S47: 6000 | T47: GPO Box L921 | V47: PERTH | W47: WA | X47: 6842 | Y47: Judy Hunter | Z47: 08 9326 6239 | AA47: judy.hunter@westernpower.com.au | AE47: YES | AF47: YES | AG47: NO | AH47: NO | AI47: CBD | AJ47: Urban | AK47: Short rural | AL47: Long rural | AN47: Western Power (D)
B48: Western Power (T) | C48: Western Power (T) | D48: 18540492861 | E48: WA | F48: Electricity | G48: Transmission | H48: Revenue cap | I48: Financial | J48: June | K48: 12 | L48: 4 | M48: x | N48: transmission determination | O48: 363 Wellington Street | Q48: PERTH | R48: WA | S48: 6000 | T48: GPO Box L921 | V48: PERTH | W48: WA | X48: 6842 | Y48: Judy Hunter | Z48: 08 9326 6239 | AA48: judy.hunter@westernpower.com.au | AE48: YES | AF48: YES | AG48: NO | AI48: CBD | AJ48: Urban | AK48: Short rural | AL48: Long rural | AN48: Western Power (T)
W51: For EB & Reset RINs only | AC51: For AARs only
B52: The Reg Year Ending (dms_RYE) must be set to the last year of the regulatory period. For forecast data is is usually (FRCP_y5) for actual it is a single year (CRY). For historical actual data the RYE will need to be set manually in the business details sheet by setting the dms_Multiyear_flag to 1 and putting the correct value in 'dms_Specified_FinalYear. See cells C67:C68 | G52: =IF(dms_RPT="financial",VALUE(LEFT(CRCP_y1,4)-1)&"-"&TEXT(VALUE(RIGHT(CRCP_y1,2)-1),"00"),VALUE(LEFT(CRCP_y1,4)-1)) -> 2011-12 | N52: Drop down selector box for CA & Reset RINs. | O52: For CA & Reset RINs only | W52: for DNSP only | AC52: For DNSPs only | AI52: Reason for interruption | AJ52: dms_Reason_Interruption_Detailed | AK52: dms_Reason_Interruption
B53: dms_Model_List | C53: DELETE NR 'CRY' IF NOT AN ANNUAL RIN (EB, CA , ARR) | E53: dms_RYE_Formula_Result | N53: dms_0203_ProjectType | O53: dms_020303_01_UOM | P53: dms_020501_01_UOM | Q53: dms_020501_02_UOM | R53: dms_020501_03_UOM | S53: dms_020501_04_UOM | T53: dms_020603_01_UOM | U53: dms_040102_01_UOM | V53: dms_040102_04_UOM | W53: dms_030601_01_UOM | X53: dms_030601_02_UOM | Y53: dms_030701_01_UOM | Z53: dms_030702_01_UOM | AA53: dms_030703_01_UOM | AC53: dms_030605_UOM | AD53: dms_03060703_UOM | AI53: Animal | AJ53: Animal impact | AK53: Animal
B54: ARR | C54: ANNUAL REPORTING STATEMENT | E54: =LEFT(dms_SingleYear_FinalYear_Result,2)&RIGHT(dms_SingleYear_FinalYear_Result,2) -> 2017 | F54: =LEFT(dms_SingleYear_FinalYear_Result,2)&RIGHT(dms_SingleYear_FinalYear_Result,2) | H54: Formula errors are OK | N54: New line on new route - single circuit | O54: Circuit line length in km | P54: 0's | Q54: 0's | R54: 0's | S54: 0's | T54: 0's | U54: 0's | V54: days | W54: minutes/customer | X54: minutes/customer | Y54: Customer / km | Z54: % | AA54: km | AC54: number | AD54: number | AJ54: Animal nesting/burrowing, etc and other | AK54: Asset failure
B55: CA | C55: CATEGORY ANALYSIS | E55: =LEFT(dms_SingleYear_FinalYear_Result,2)&RIGHT(dms_SingleYear_FinalYear_Result,2) -> 2017 | F55: =LEFT(dms_SingleYear_FinalYear_Result,2)&RIGHT(dms_SingleYear_FinalYear_Result,2) | H55: Formula errors are OK | N55: New line on new route - dual circuit | O55: Circuit line length in km | P55: 0's | Q55: 0's | R55: 0's | S55: 0's | T55: 0's | U55: 0's | V55: 0's | W55: minutes/customer | X55: minutes/customer | Y55: MWh/customer | Z55: Number of spans | AC55: number | AD55: number | AJ55: Other | AK55: Other
B56: CPI | C56: CPI | N56: New line on new route - other | O56: Circuit line length in km | P56: MVA added | Q56: MVA added | R56: MVA added | S56: MVA added | T56: 0's | U56: 0's | V56: $0s | W56: interruptions/customer | X56: interruptions/customer | Y56: kVA / customer | Z56: Number of spans | AC56: number | AD56: number | AI56: Asset failure | AJ56: LV | AK56: Overloads
B57: EB | C57: ECONOMIC BENCHMARKING | E57: =LEFT(dms_SingleYear_FinalYear_Result,2)&RIGHT(dms_SingleYear_FinalYear_Result,2) -> 2017 | F57: =LEFT(dms_SingleYear_FinalYear_Result,2)&RIGHT(dms_SingleYear_FinalYear_Result,2) | H57: Formula errors are OK | N57: Line rebuild over existing route - single circuit | O57: Circuit line length in km | P57: 0's | Q57: 0's | R57: 0's | S57: 0's | T57: 0's | U57: $0s | V57: 0's | W57: interruptions/customer | X57: interruptions/customer | Z57: Number of spans | AC57: number | AD57: number | AJ57: Distribution substation | AK57: Planned
B58: PTRM | C58: POST TAX REVENUE MODEL | E58: =LEFT(dms_MultiYear_FinalYear_Result,2)&RIGHT(dms_MultiYear_FinalYear_Result,2) -> 2022 | F58: =LEFT(dms_MultiYear_FinalYear_Result,2)&RIGHT(dms_MultiYear_FinalYear_Result,2) | N58: Line rebuild over existing route - dual circuit | O58: Number | P58: total spend $0s | Q58: total spend $0s | R58: total spend $0s | S58: total spend $0s | T58: (per cent) | Z58: Number of spans | AC58: number | AD58: (per cent) | AJ58: HV | AK58: Network business
B59: Reset | C59: REGULATORY REPORTING STATEMENT | E59: =LEFT(dms_MultiYear_FinalYear_Result,2)&RIGHT(dms_MultiYear_FinalYear_Result,2) -> 2022 | F59: =LEFT(dms_MultiYear_FinalYear_Result,2)&RIGHT(dms_MultiYear_FinalYear_Result,2) | H59: Formula errors are OK | N59: Reconductor - Single circuit | O59: Number | P59: net circuit km added | Q59: net circuit km added | R59: net circuit km added | S59: net circuit km added | Z59: Years | AC59: number | AJ59: Zone substation | AK59: Third party
B60: RFM | C60: ROLL FORWARD MODEL | E60: =LEFT(dms_CRCP_FinalYear_Result,2)&RIGHT(dms_CRCP_FinalYear_Result,2) -> 2017 | F60: =LEFT(dms_CRCP_FinalYear_Result,2)&RIGHT(dms_CRCP_FinalYear_Result,2) | N60: Reconductor - Dual circuit | O60: Number | P60: total spend $0s | Q60: total spend $0s | R60: total spend $0s | S60: total spend $0s | Z60: Years | AC60: number | AJ60: Subtransmission | AK60: Unknown
B61: WACC | C61: WEIGHTED AVERAGE COST OF CAPITAL | E61: =LEFT(dms_MultiYear_FinalYear_Result,2)&RIGHT(dms_MultiYear_FinalYear_Result,2) -> 2022 | F61: =LEFT(dms_MultiYear_FinalYear_Result,2)&RIGHT(dms_MultiYear_FinalYear_Result,2) | N61: Other | P61: net circuit km added | Q61: net circuit km added | R61: net circuit km added | S61: net circuit km added | Z61: Trees | AC61: number | AI61: Other | AJ61: insert description of 'other' | AK61: Vegetation
P62: total spend $0s | Q62: total spend $0s | R62: total spend $0s | S62: total spend $0s | Z62: Trees | AC62: number | AI62: Overloads | AJ62: - | AK62: Weather
B63: dms_DataQuality_List | P63: 0's | R63: $0s | Z63: Defects | AC63: number | AI63: Planned | AJ63: - | AK63: 2 - STPIS Exclusion (3.3)(a)
B64: Actual | P64: 0's | Z64: Defects | AC64: number | AI64: Network business | AJ64: Network error | AK64: 3 - STPIS Exclusion (3.3)(a)
B65: Estimate | P65: 0's | Z65: Spans | AC65: number | AJ65: Switching and protection error | AK65: 4 - STPIS Exclusion (3.3)(a)
B66: Consolidated | P66: $0s | Z66: km | AC66: (per cent) | AI66: Third party | AJ66: Fire | AK66: 5 - STPIS Exclusion (3.3)(a)
B67: Recast | Z67: Spans | AC67: (per cent) | AJ67: Other | AK67: 6 - STPIS Exclusion (3.3)(a)
B68: Public | AJ68: Dig-in | AK68: 7 - STPIS Exclusion (3.3)(a)
AJ69: Unauthorised access
B70: For all files either AER or business needs to be able to specify the type of submission | C70: For PTRM & RFM templates we must provide a choice in case they change their form of control - otherwise it is drawn from the business specific lookup table above. | O70: For PTRM files - this field set the text for the named range "DMS_Xfactor" which in all cases is simply the text "x factors" - this saves putting in each old gas PTRM file | W70: for TNSP only | AJ70: Vehicle impact
B71: dms_SourceList | C71: dms_FormControl_Choices | O71: DMS_Xfactor | W71: dms_030601_01_UOM | Y71: dms_030701_01_UOM | Z71: dms_030702_01_UOM | AI71: Unknown | AJ71: Unknown
B72: After appeal | C72: Revenue cap | O72: x factors | W72: % | Y72: Number of spans | Z72: km | AI72: Vegetation | AJ72: Blow-in/Fall-in - NSP responsibility
B73: Draft decision | C73: Revenue yield | W73: number | Y73: Years | Z73: % | AJ73: Grow-in - NSP responsibility
B74: Final decision | C74: Weighted average price cap | W74: number | Y74: Trees | Z74: km | AJ74: Blow-in/Fall-in - Other responsible party
B75: PTRM update 1 | W75: % | Y75: Defects | Z75: number | AJ75: Grow-in - Other responsible party
B76: PTRM update 2 | W76: number | Y76: Number of spans | AI76: Weather
B77: PTRM update 3 | W77: number | Y77: km | AI77: 2 - STPIS Exclusion (3.3)(a)
B78: PTRM update 4 | W78: % | Y78: km | AI78: 3 - STPIS Exclusion (3.3)(a)
B79: PTRM update 5 | W79: number | Y79: Number of spans | AI79: 4 - STPIS Exclusion (3.3)(a)
B80: PTRM update 6 | W80: number | AI80: 5 - STPIS Exclusion (3.3)(a)
B81: PTRM update 7 | W81: % | AI81: 6 - STPIS Exclusion (3.3)(a)
B82: Regulatory proposal | W82: number | AI82: 7 - STPIS Exclusion (3.3)(a)
B83: Reporting | W83: %
B84: Revised regulatory proposal | W84: number
W85: %
W86: number
B90: These are indeces and lookup values for various dates. All step from the value placed in FRCP_y1 on the business and other details worksheet | L90: These date tables are currently used in the Recast templates to provide column headings and conditional formatting
B91: dms_FRCPlength_Num_List | C91: dms_FinalYear_List | D91: dms_CRCPlength_Num_List | E91: dms_CFinalYear_List | F91: dms_FRCP_years | H91: dms_CRCP_years | J91: dms_CRCP_index | L91: CRY from input cell on business sheet | M91: CRY - financial | N91: dms_FinYears | O91: CRY calendar | P91: dms_CalYears
B92: 1 | C92: dms_FRCP_y1 | D92: 1 | E92: CRCP_y1 | F92: =FRCP_y1 -> 2017-18 | G92: dms_FRCP_y1 | H92: =IF(dms_RPT="financial",VALUE(LEFT(dms_FRCP_y1,4)-1)&"-"&TEXT(VALUE(MID(dms_FRCP_y1,3,2)),"00"),VALUE(LEFT(dms_FRCP_y1,4)-1)) -> 2016-17 | I92: dms_CRCP_yZ | J92: 1 | L92: =CRY -> 2016-17 | M92: =VALUE(LEFT(CRY,4))&"-"&TEXT(MID(CRY,3,2)+1,"00") -> 2016-17 | N92: dms_CRYf_y1 | O92: =VALUE(LEFT(CRY,4)+1) -> 2017 | P92: dms_CRYc_y1
B93: 2 | C93: dms_FRCP_y2 | D93: 2 | E93: CRCP_y2 | F93: =IF(dms_RPT="financial",VALUE(LEFT(dms_FRCP_y1,4)+1)&"-"&TEXT(VALUE(RIGHT(dms_FRCP_y1,2)+1),"00"),VALUE(LEFT(dms_FRCP_y1,4)+1)) -> 2018-19 | G93: dms_FRCP_y2 | H93: =IF(dms_RPT="financial",VALUE(LEFT(dms_CRCP_yZ,4)-1)&"-"&TEXT(VALUE(MID(dms_CRCP_yZ,3,2)),"00"),VALUE(LEFT(dms_CRCP_yZ,4)-1)) -> 2015-16 | I93: dms_CRCP_yY | J93: 2 | M93: =VALUE(LEFT(dms_CRYf_y1,4)+1)&"-"&TEXT(MID(dms_CRYf_y1,3,2)+2,"00") -> 2017-18 | N93: dms_CRYf_y2 | O93: =VALUE(LEFT(dms_CRYc_y1,4)+1) -> 2018 | P93: dms_CRYc_y2
B94: 3 | C94: dms_FRCP_y3 | D94: 3 | E94: CRCP_y3 | F94: =IF(dms_RPT="financial",VALUE(LEFT(dms_FRCP_y2,4)+1)&"-"&TEXT(VALUE(RIGHT(dms_FRCP_y2,2)+1),"00"),VALUE(LEFT(dms_FRCP_y2,4)+1)) -> 2019-20 | G94: dms_FRCP_y3 | H94: =IF(dms_RPT="financial",VALUE(LEFT(dms_CRCP_yY,4)-1)&"-"&TEXT(VALUE(MID(dms_CRCP_yY,3,2)),"00"),VALUE(LEFT(dms_CRCP_yY,4)-1)) -> 2014-15 | I94: dms_CRCP_yX | J94: 3 | M94: =VALUE(LEFT(dms_CRYf_y2,4)+1)&"-"&TEXT(MID(dms_CRYf_y2,3,2)+2,"00") -> 2018-19 | N94: dms_CRYf_y3 | O94: =VALUE(LEFT(dms_CRYc_y2,4)+1) -> 2019 | P94: dms_CRYc_y3
B95: 4 | C95: dms_FRCP_y4 | D95: 4 | E95: CRCP_y4 | F95: =IF(dms_RPT="financial",VALUE(LEFT(dms_FRCP_y3,4)+1)&"-"&TEXT(VALUE(RIGHT(dms_FRCP_y3,2)+1),"00"),VALUE(LEFT(dms_FRCP_y3,4)+1)) -> 2020-21 | G95: dms_FRCP_y4 | H95: =IF(dms_RPT="financial",VALUE(LEFT(dms_CRCP_yX,4)-1)&"-"&TEXT(VALUE(MID(dms_CRCP_yX,3,2)),"00"),VALUE(LEFT(dms_CRCP_yX,4)-1)) -> 2013-14 | I95: dms_CRCP_yW | J95: 4 | M95: =VALUE(LEFT(dms_CRYf_y3,4)+1)&"-"&TEXT(MID(dms_CRYf_y3,3,2)+2,"00") -> 2019-20 | N95: dms_CRYf_y4 | O95: =VALUE(LEFT(dms_CRYc_y3,4)+1) -> 2020 | P95: dms_CRYc_y4
B96: 5 | C96: dms_FRCP_y5 | D96: 5 | E96: CRCP_y5 | F96: =IF(dms_RPT="financial",VALUE(LEFT(dms_FRCP_y4,4)+1)&"-"&TEXT(VALUE(RIGHT(dms_FRCP_y4,2)+1),"00"),VALUE(LEFT(dms_FRCP_y4,4)+1)) -> 2021-22 | G96: dms_FRCP_y5 | H96: =IF(dms_RPT="financial",VALUE(LEFT(dms_CRCP_yW,4)-1)&"-"&TEXT(VALUE(MID(dms_CRCP_yW,3,2)),"00"),VALUE(LEFT(dms_CRCP_yW,4)-1)) -> 2012-13 | I96: dms_CRCP_yV | J96: 5 | M96: =VALUE(LEFT(dms_CRYf_y4,4)+1)&"-"&TEXT(MID(dms_CRYf_y4,3,2)+2,"00") -> 2020-21 | N96: dms_CRYf_y5 | O96: =VALUE(LEFT(dms_CRYc_y4,4)+1) -> 2021 | P96: dms_CRYc_y5
B97: 6 | C97: dms_FRCP_y6 | D97: 6 | E97: CRCP_y6 | F97: =IF(dms_RPT="financial",VALUE(LEFT(dms_FRCP_y5,4)+1)&"-"&TEXT(VALUE(RIGHT(dms_FRCP_y5,2)+1),"00"),VALUE(LEFT(dms_FRCP_y5,4)+1)) -> 2022-23 | G97: dms_FRCP_y6 | H97: =IF(dms_RPT="financial",VALUE(LEFT(dms_CRCP_yV,4)-1)&"-"&TEXT(VALUE(MID(dms_CRCP_yV,3,2)),"00"),VALUE(LEFT(dms_CRCP_yV,4)-1)) -> 2011-12 | I97: dms_CRCP_yU | J97: 6 | M97: =VALUE(LEFT(dms_CRYf_y5,4)+1)&"-"&TEXT(MID(dms_CRYf_y5,3,2)+2,"00") -> 2021-22 | N97: dms_CRYf_y6 | O97: =VALUE(LEFT(dms_CRYc_y5,4)+1) -> 2022 | P97: dms_CRYc_y6
B98: 7 | C98: dms_FRCP_y7 | D98: 7 | E98: CRCP_y7 | F98: =IF(dms_RPT="financial",VALUE(LEFT(dms_FRCP_y6,4)+1)&"-"&TEXT(VALUE(RIGHT(dms_FRCP_y6,2)+1),"00"),VALUE(LEFT(dms_FRCP_y6,4)+1)) -> 2023-24 | G98: dms_FRCP_y7 | H98: =IF(dms_RPT="financial",VALUE(LEFT(dms_CRCP_yU,4)-1)&"-"&TEXT(VALUE(MID(dms_CRCP_yU,3,2)),"00"),VALUE(LEFT(dms_CRCP_yU,4)-1)) -> 2010-11 | I98: dms_CRCP_yT | J98: 7 | M98: =VALUE(LEFT(dms_CRYf_y6,4)+1)&"-"&TEXT(MID(dms_CRYf_y6,3,2)+2,"00") -> 2022-23 | N98: dms_CRYf_y7 | O98: =VALUE(LEFT(dms_CRYc_y6,4)+1) -> 2023 | P98: dms_CRYc_y7
B99: 8 | C99: dms_FRCP_y8 | D99: 8 | E99: CRCP_y8 | F99: =IF(dms_RPT="financial",VALUE(LEFT(dms_FRCP_y7,4)+1)&"-"&TEXT(VALUE(RIGHT(dms_FRCP_y7,2)+1),"00"),VALUE(LEFT(dms_FRCP_y7,4)+1)) -> 2024-25 | G99: dms_FRCP_y8 | H99: =IF(dms_RPT="financial",VALUE(LEFT(dms_CRCP_yT,4)-1)&"-"&TEXT(VALUE(MID(dms_CRCP_yT,3,2)),"00"),VALUE(LEFT(dms_CRCP_yT,4)-1)) -> 2009-10 | I99: dms_CRCP_yS | J99: 8 | M99: =VALUE(LEFT(dms_CRYf_y7,4)+1)&"-"&TEXT(MID(dms_CRYf_y7,3,2)+2,"00") -> 2023-24 | N99: dms_CRYf_y8 | O99: =VALUE(LEFT(dms_CRYc_y7,4)+1) -> 2024 | P99: dms_CRYc_y8
B100: 9 | C100: dms_FRCP_y9 | D100: 9 | E100: CRCP_y9 | F100: =IF(dms_RPT="financial",VALUE(LEFT(dms_FRCP_y8,4)+1)&"-"&TEXT(VALUE(RIGHT(dms_FRCP_y8,2)+1),"00"),VALUE(LEFT(dms_FRCP_y8,4)+1)) -> 2025-26 | G100: dms_FRCP_y9 | H100: =IF(dms_RPT="financial",VALUE(LEFT(dms_CRCP_yS,4)-1)&"-"&TEXT(VALUE(MID(dms_CRCP_yS,3,2)),"00"),VALUE(LEFT(dms_CRCP_yS,4)-1)) -> 2008-09 | I100: dms_CRCP_yR | J100: 9 | M100: =VALUE(LEFT(dms_CRYf_y8,4)+1)&"-"&TEXT(MID(dms_CRYf_y8,3,2)+2,"00") -> 2024-25 | N100: dms_CRYf_y9 | O100: =VALUE(LEFT(dms_CRYc_y8,4)+1) -> 2025 | P100: dms_CRYc_y9
B101: 10 | C101: dms_FRCP_y10 | D101: 10 | E101: CRCP_y10 | F101: =IF(dms_RPT="financial",VALUE(LEFT(dms_FRCP_y9,4)+1)&"-"&TEXT(VALUE(RIGHT(dms_FRCP_y9,2)+1),"00"),VALUE(LEFT(dms_FRCP_y9,4)+1)) -> 2026-27 | G101: dms_FRCP_y10 | H101: =IF(dms_RPT="financial",VALUE(LEFT(dms_CRCP_yR,4)-1)&"-"&TEXT(VALUE(MID(dms_CRCP_yR,3,2)),"00"),VALUE(LEFT(dms_CRCP_yR,4)-1)) -> 2007-08 | I101: dms_CRCP_yQ | J101: 10 | M101: =VALUE(LEFT(dms_CRYf_y9,4)+1)&"-"&TEXT(MID(dms_CRYf_y9,3,2)+2,"00") -> 2025-26 | N101: dms_CRYf_y10 | O101: =VALUE(LEFT(dms_CRYc_y9,4)+1) -> 2026 | P101: dms_CRYc_y10
B102: 11 | C102: dms_FRCP_y11 | D102: 11 | E102: CRCP_y11 | F102: =IF(dms_RPT="financial",VALUE(LEFT(dms_FRCP_y10,4)+1)&"-"&TEXT(VALUE(RIGHT(dms_FRCP_y10,2)+1),"00"),VALUE(LEFT(dms_FRCP_y10,4)+1)) -> 2027-28 | G102: dms_FRCP_y11 | H102: =IF(dms_RPT="financial",VALUE(LEFT(dms_CRCP_yQ,4)-1)&"-"&TEXT(VALUE(MID(dms_CRCP_yQ,3,2)),"00"),VALUE(LEFT(dms_CRCP_yQ,4)-1)) -> 2006-07 | I102: dms_CRCP_yP | J102: 11 | M102: =VALUE(LEFT(dms_CRYf_y10,4)+1)&"-"&TEXT(MID(dms_CRYf_y10,3,2)+2,"00") -> 2026-27 | N102: dms_CRYf_y11 | O102: =VALUE(LEFT(dms_CRYc_y10,4)+1) -> 2027 | P102: dms_CRYc_y11
B103: 12 | C103: dms_FRCP_y12 | D103: 12 | E103: CRCP_y12 | F103: =IF(dms_RPT="financial",VALUE(LEFT(dms_FRCP_y11,4)+1)&"-"&TEXT(VALUE(RIGHT(dms_FRCP_y11,2)+1),"00"),VALUE(LEFT(dms_FRCP_y11,4)+1)) -> 2028-29 | G103: dms_FRCP_y12 | H103: =IF(dms_RPT="financial",VALUE(LEFT(dms_CRCP_yP,4)-1)&"-"&TEXT(VALUE(MID(dms_CRCP_yP,3,2)),"00"),VALUE(LEFT(dms_CRCP_yP,4)-1)) -> 2005-06 | I103: dms_CRCP_yO | J103: 12 | M103: =VALUE(LEFT(dms_CRYf_y11,4)+1)&"-"&TEXT(MID(dms_CRYf_y11,3,2)+2,"00") -> 2027-28 | N103: dms_CRYf_y12 | O103: =VALUE(LEFT(dms_CRYc_y11,4)+1) -> 2028 | P103: dms_CRYc_y12
B104: 13 | C104: dms_FRCP_y13 | D104: 13 | E104: CRCP_y13 | F104: =IF(dms_RPT="financial",VALUE(LEFT(dms_FRCP_y12,4)+1)&"-"&TEXT(VALUE(RIGHT(dms_FRCP_y12,2)+1),"00"),VALUE(LEFT(dms_FRCP_y12,4)+1)) -> 2029-30 | G104: dms_FRCP_y13 | H104: =IF(dms_RPT="financial",VALUE(LEFT(dms_CRCP_yO,4)-1)&"-"&TEXT(VALUE(MID(dms_CRCP_yO,3,2)),"00"),VALUE(LEFT(dms_CRCP_yO,4)-1)) -> 2004-05 | I104: dms_CRCP_yN | J104: 13 | M104: =VALUE(LEFT(dms_CRYf_y12,4)+1)&"-"&TEXT(MID(dms_CRYf_y12,3,2)+2,"00") -> 2028-29 | N104: dms_CRYf_y13 | O104: =VALUE(LEFT(dms_CRYc_y12,4)+1) -> 2029 | P104: dms_CRYc_y13
B105: 14 | C105: dms_FRCP_y14 | D105: 14 | E105: CRCP_y14 | F105: =IF(dms_RPT="financial",VALUE(LEFT(dms_FRCP_y13,4)+1)&"-"&TEXT(VALUE(RIGHT(dms_FRCP_y13,2)+1),"00"),VALUE(LEFT(dms_FRCP_y13,4)+1)) -> 2030-31 | G105: dms_FRCP_y14 | H105: =IF(dms_RPT="financial",VALUE(LEFT(dms_CRCP_yN,4)-1)&"-"&TEXT(VALUE(MID(dms_CRCP_yN,3,2)),"00"),VALUE(LEFT(dms_CRCP_yN,4)-1)) -> 2003-04 | I105: dms_CRCP_yM | J105: 14 | M105: =VALUE(LEFT(dms_CRYf_y13,4)+1)&"-"&TEXT(MID(dms_CRYf_y13,3,2)+2,"00") -> 2029-30 | N105: dms_CRYf_y14 | O105: =VALUE(LEFT(dms_CRYc_y13,4)+1) -> 2030 | P105: dms_CRYc_y14
B106: 15 | C106: dms_FRCP_y15 | D106: 15 | E106: CRCP_y15 | F106: =IF(dms_RPT="financial",VALUE(LEFT(dms_FRCP_y14,4)+1)&"-"&TEXT(VALUE(RIGHT(dms_FRCP_y14,2)+1),"00"),VALUE(LEFT(dms_FRCP_y14,4)+1)) -> 2031-32 | G106: dms_FRCP_y15 | H106: =IF(dms_RPT="financial",VALUE(LEFT(dms_CRCP_yM,4)-1)&"-"&TEXT(VALUE(MID(dms_CRCP_yM,3,2)),"00"),VALUE(LEFT(dms_CRCP_yM,4)-1)) -> 2002-03 | I106: dms_CRCP_yL | J106: 15 | M106: =VALUE(LEFT(dms_CRYf_y14,4)+1)&"-"&TEXT(MID(dms_CRYf_y14,3,2)+2,"00") -> 2030-31 | N106: dms_CRYf_y15 | O106: =VALUE(LEFT(dms_CRYc_y14,4)+1) -> 2031 | P106: dms_CRYc_y15
M107: =VALUE(LEFT(dms_CRYf_y15,4)+1)&"-"&TEXT(MID(dms_CRYf_y15,3,2)+2,"00") -> 2031-32 | N107: dms_CRYf_y16 | O107: =VALUE(LEFT(dms_CRYc_y15,4)+1) -> 2032 | P107: dms_CRYc_y16
B108: These are drop down lists for businesses to select the correct FRCP_y1 on the business and other details worksheet. This also populates the column headings in the worksheets | M108: =VALUE(LEFT(dms_CRYf_y16,4)+1)&"-"&TEXT(MID(dms_CRYf_y16,3,2)+2,"00") -> 2032-33 | N108: dms_CRYf_y17 | O108: =VALUE(LEFT(dms_CRYc_y16,4)+1) -> 2033 | P108: dms_CRYc_y17
B109: dms_RCP_fyear_list | C109: dms_CRY_ListF | D109: dms_CRY_ListC | E109: dms_RCP_cyear_list | F109: dms_FRCP_fyear_list | G109: dms_FRCP_ListF | H109: dms_FRCP_ListC | I109: dms_FRCP_cyear_list | M109: =VALUE(LEFT(dms_CRYf_y17,4)+1)&"-"&TEXT(MID(dms_CRYf_y17,3,2)+2,"00") -> 2033-34 | N109: dms_CRYf_y18 | O109: =VALUE(LEFT(dms_CRYc_y17,4)+1) -> 2034 | P109: dms_CRYc_y18
B110: dms_fy1 | C110: 2006-07 | D110: 2007 | E110: dms_cy1 | F110: dms_frcp_fy1 | G110: 2015-16 | H110: 2016 | I110: dms_crcp_cy1 | M110: =VALUE(LEFT(dms_CRYf_y18,4)+1)&"-"&TEXT(MID(dms_CRYf_y18,3,2)+2,"00") -> 2034-35 | N110: dms_CRYf_y19 | O110: =VALUE(LEFT(dms_CRYc_y18,4)+1) -> 2035 | P110: dms_CRYc_y19
B111: dms_fy2 | C111: 2007-08 | D111: 2008 | E111: dms_cy2 | F111: dms_frcp_fy2 | G111: 2016-17 | H111: 2017 | I111: dms_crcp_cy2 | M111: =VALUE(LEFT(dms_CRYf_y19,4)+1)&"-"&TEXT(MID(dms_CRYf_y19,3,2)+2,"00") -> 2035-36 | N111: dms_CRYf_y20 | O111: =VALUE(LEFT(dms_CRYc_y19,4)+1) -> 2036 | P111: dms_CRYc_y20
B112: dms_fy3 | C112: 2008-09 | D112: 2009 | E112: dms_cy3 | F112: dms_frcp_fy3 | G112: 2017-18 | H112: 2018 | I112: dms_crcp_cy3
B113: dms_fy4 | C113: 2009-10 | D113: 2010 | E113: dms_cy4 | F113: dms_frcp_fy4 | G113: 2018-19 | H113: 2019 | I113: dms_crcp_cy4
B114: dms_fy5 | C114: 2010-11 | D114: 2011 | E114: dms_cy5 | F114: dms_frcp_fy5 | G114: 2019-20 | H114: 2020 | I114: dms_crcp_cy5
B115: dms_fy6 | C115: 2011-12 | D115: 2012 | E115: dms_cy6 | F115: dms_frcp_fy6 | G115: 2020-21 | H115: 2021 | I115: dms_crcp_cy6
B116: dms_fy7 | C116: 2012-13 | D116: 2013 | E116: dms_cy7 | F116: dms_frcp_fy7 | G116: 2021-22 | H116: 2022 | I116: dms_crcp_cy7
B117: dms_fy8 | C117: 2013-14 | D117: 2014 | E117: dms_cy8 | F117: dms_frcp_fy8 | G117: 2022-23 | H117: 2023 | I117: dms_crcp_cy8 | L117: 2005-06 | M117: 2006
B118: dms_fy9 | C118: 2014-15 | D118: 2015 | E118: dms_cy9 | F118: dms_frcp_fy9 | G118: 2023-24 | H118: 2024 | I118: dms_crcp_cy9 | L118: 2006-07 | M118: 2007
B119: dms_fy10 | C119: 2015-16 | D119: 2016 | E119: dms_cy10 | F119: dms_frcp_fy10 | G119: 2024-25 | H119: 2025 | I119: dms_crcp_cy10 | L119: 2007-08 | M119: 2008
B120: dms_fy11 | C120: 2016-17 | D120: 2017 | E120: dms_cy11 | F120: dms_frcp_fy11 | G120: 2025-26 | H120: 2026 | I120: dms_crcp_cy11 | L120: 2008-09 | M120: 2009
B121: dms_fy12 | C121: 2017-18 | D121: 2018 | E121: dms_cy12 | F121: dms_frcp_fy12 | G121: 2026-27 | H121: 2027 | I121: dms_crcp_cy12 | L121: 2009-10 | M121: 2010
B122: dms_fy13 | C122: 2018-19 | D122: 2019 | E122: dms_cy13 | F122: dms_frcp_fy13 | G122: 2027-28 | H122: 2028 | I122: dms_crcp_cy13 | L122: 2010-11 | M122: 2011
B123: dms_fy14 | C123: 2019-20 | D123: 2020 | E123: dms_cy14 | F123: dms_frcp_fy14 | G123: 2028-29 | H123: 2029 | I123: dms_crcp_cy14 | L123: 2011-12 | M123: 2012
B124: dms_fy15 | C124: 2019-20 | D124: 2020 | E124: dms_cy15 | F124: dms_frcp_fy15 | G124: 2029-30 | H124: 2030 | I124: dms_crcp_cy15 | L124: 2012-13 | M124: 2013
B125: dms_fy16 | C125: 2020-21 | D125: 2021 | E125: dms_cy16 | L125: 2013-14 | M125: 2014
B126: dms_fy17 | C126: 2021-22 | D126: 2022 | E126: dms_cy17 | L126: 2014-15 | M126: 2015
B127: dms_fy18 | C127: 2022-23 | D127: 2023 | E127: dms_cy18 | L127: 2015-16 | M127: 2016
B128: dms_fy19 | C128: 2023-24 | D128: 2024 | E128: dms_cy19 | L128: 2016-17 | M128: 2017
B129: dms_fy20 | C129: 2024-25 | D129: 2025 | E129: dms_cy20 | L129: 2017-18 | M129: 2018
L130: 2018-19 | M130: 2019
L131: 2019-20 | M131: 2020
L132: 2020-21 | M132: 2021
L133: 2021-22 | M133: 2022
L134: 2022-23 | M134: 2023
L135: 2023-24 | M135: 2024
L136: 2024-25 | M136: 2025
L137: 2025-26 | M137: 2026
L138: 2026-27 | M138: 2027
L139: 2027-28 | M139: 2028
L140: 2028-29 | M140: 2029
L141: 2029-30 | M141: 2030
L142: 2030-31 | M142: 2031
L143: 2031-32 | M143: 2032
L144: 2032-33 | M144: 2033
L145: 2033-34 | M145: 2034
L146: 2034-35 | M146: 2035
L147: 2035-36 | M147: 2036

Sheet Instructions
B2: =CONCATENATE(dms_Segment," Network Service Provider") -> Distribution Network Service Provider
B3: Annual Reporting RIN Template
C4: =CONCATENATE("This template is to be used by ",dms_TradingName," to fulfil its reporting obligations to the AER.") -> This template is to be used by Australian Distribution Co. to fulfil its reporting obligations to the AER.
C5: INSTRUCTIONS
C6: Complete the Business & other details worksheet before entering data or values in any other worksheets. The Business & other details worksheet is linked to other worksheets within the workbook and automatically generates certain column headings and conditional formatting.
C8: Identifying CONFIDENTIAL INFORMATION: Please use the macro at the top of each worksheet to identify confidential information.
C9: -Do this by selecting the cell or cells that contain confidential information and then run the Mark selected cells as CONFIDENTIAL macro. This will format the cells a specific colour that is identified by the AER's database which in turn marks that information as confidential. -To reverse this, select the cell or cells and run the Return cells to NON-CONFIDENTIAL macro
C11: UNITS OF MEASURE All amounts are to be unrounded and reported in nominal terms on a one for one basis: that is 1000 is to be entered as '1000'. Applicable units of measure may be identified in the table column headings or row descriptors.
C13: COLOUR CODING OF INPUT / NON-INPUT CELLS:
D14: Yellow = Input cell (mandatory)
D15: Darker yellow = input cell (mandatory)
D16: Orange = input cell (if data available)
D17: Grey = Not applicable/No inputs required
D18: PLEASE DO NOT ENTER TEXT into cells that are to contain numeric data.
C21: WORKSHEET NAVIGATION Many tables in the worksheets have been "grouped" to allow for easy navigation. To ungroup or group data use the outline symbols in the left margin of excel (for Row groupings) or above the columns (for column groupings).
C23: RETURNING COMPLETED RESPONSES Please return four (4) files - using the locked template - to the AER: 1. A confidential version which must contain a complete set of all responses with confidential information marked using the Mark selected cells CONFIDENTIAL macro. 2. An actual and an estimate version with confidential information marked using the Mark selection CONFIDENTIAL macro and which has been completed using the locked template file provided by the AER. 3. A public version with confidential information either removed completely or aggregated in some form together with writtten consent to disclose the public version of the response. Use the drop down box on the Business and other details worksheet to identify the file as either confidential ('consolidated') or public. If the confidential and public versions of the consolidated file are exactly the same, only the public version of the file needs to be submitted to the AER.
C25: SUBMITTING AMENDED DATA TO THE AER If an NSP wishes to correct data previously submitted to the AER it should resubmit that data using the original completed submission as the starting point. Please make any necessary changes to the data. Data that is not being amended should be left unchanged. NSPs must identify the reason for the amendments in the Amendment Reason box on the Business and other details worksheet. NSPs may provide further details regarding any amendments in the Amendments worksheet. .
C26: NSP may use Amended Data macro to highlight cells that contain amended data. NB: if data is also CONFIDENTIAL, re-apply the Confidentiality macro after applying the Amended macro
C27: Please resubmit two (2) files - a confidential version and a public version of the amended submission to the AER

Sheet Contents
B1: REGULATORY REPORTING STATEMENT
B2: =dms_TradingName -> Australian Distribution Co.
B3: =CONCATENATE("Benchmarking RIN response ",CRY) -> Benchmarking RIN response 2016-17
B5: CONTENTS
B12: 3. ECONOMIC BENCHMARKING

Sheet Business & other details
B1: =IF(dms_DataQuality="backcast",INDEX(dms_Worksheet_List,MATCH(dms_Model,dms_Model_List))&" BACKCAST",INDEX(dms_Worksheet_List,MATCH(dms_Model,dms_Model_List))) -> ECONOMIC BENCHMARKING
B2: =INDEX(dms_TradingNameFull_List,MATCH(dms_TradingName,dms_TradingName_List)) -> Australian Distribution Co.
B3: =CONCATENATE("Benchmarking RIN response ",CRY) -> Benchmarking RIN response 2016-17
B4: BUSINESS & OTHER DETAILS
B7: Instructions
B8: Complete the following business details regulatory template before entering data or values in any other regulatory template. This regulatory template is linked to other cells within the spreadsheet and automatically generates column headings and conditional formatting to distinguish business specific input and non-input cells.
B10: SUBMISSION PARTICULARS INPUT SHEETS
B12: ENTITY DETAILS
B14: Short name | C14: Australian Distribution Co. | F14: Select business name from drop down list first
B15: ACN / ABN | C15: =INDEX(dms_ABN_List,MATCH(dms_TradingName,dms_TradingName_List)) -> 11222333444
B18: Business address | C18: Address 1 | E18: =INDEX(dms_Addr1_List,MATCH(dms_TradingName,dms_TradingName_List)) -> 123 Straight Street
D19: Address 2 | E19: =IF(ISBLANK(INDEX(dms_Addr2_List,MATCH(dms_TradingName,dms_TradingName_List))),"",INDEX(dms_Addr2_List,MATCH(dms_TradingName,dms_TradingName_List))) -> 
C20: Suburb | E20: =INDEX(dms_Suburb_List,MATCH(dms_TradingName,dms_TradingName_List)) -> SYDNEY
D21: State | E21: =INDEX(dms_State_List,MATCH(dms_TradingName,dms_TradingName_List)) -> NSW | F21: p/code | G21: =INDEX(dms_PostCode_List,MATCH(dms_TradingName,dms_TradingName_List)) -> 2000
B23: Postal address | C23: Address 1 | E23: =INDEX(dms_PAddr1_List,MATCH(dms_TradingName,dms_TradingName_List)) -> PO Box 123
D24: Address 2 | E24: =IF(ISBLANK(INDEX(dms_PAddr2_List,MATCH(dms_TradingName,dms_TradingName_List))),"",INDEX(dms_PAddr2_List,MATCH(dms_TradingName,dms_TradingName_List))) -> 
C25: Suburb | E25: =INDEX(dms_PSuburb_List,MATCH(dms_TradingName,dms_TradingName_List)) -> SYDNEY
D26: State | E26: =INDEX(dms_PState_List,MATCH(dms_TradingName,dms_TradingName_List)) -> NSW | F26: p/code | G26: =INDEX(dms_PPostCode_List,MATCH(dms_TradingName,dms_TradingName_List)) -> 2000
B29: Contact name/s | C29: =INDEX(dms_ContactName1_List,MATCH(dms_TradingName,dms_TradingName_List)) -> Bob Smith
B30: Contact phone/s | C30: =INDEX(dms_ContactPh1_List,MATCH(dms_TradingName,dms_TradingName_List)) -> 02 1234 5678
B31: Contact email address/s | C31: =INDEX(dms_ContactEmail_List,MATCH(dms_TradingName,dms_TradingName_List)) -> bob@auselec.net.au
B33: REGULATORY CONTROL PERIODS
B35: Forthcoming regulatory control period | C35: 2017-18 | D35: =dms_FRCP_y2 ->  | E35: =dms_FRCP_y3 ->  | F35: =dms_FRCP_y4 ->  | G35: =dms_FRCP_y5 ->  | H35: =dms_FRCP_y6 ->  | I35: =dms_FRCP_y7 ->  | J35: =dms_FRCP_y8 ->  | K35: =dms_FRCP_y9 ->  | L35: =dms_FRCP_y10 -> 
B38: Current regulatory control period | C38: =dms_CRCP_FirstYear_Result -> 2012-13 | D38: =IF(dms_RPT="financial",VALUE(LEFT(CRCP_y1,4)+1)&"-"&TEXT(MID(CRCP_y1,3,2)+2,"00"),VALUE(LEFT(CRCP_y1,4)+1)) -> 2013-14 | E38: =IF(dms_RPT="financial",VALUE(LEFT(CRCP_y2,4)+1)&"-"&TEXT(VALUE(MID(CRCP_y2,3,2)+2),"00"),VALUE(LEFT(CRCP_y2,4)+1)) -> 2014-15 | F38: =IF(dms_RPT="financial",VALUE(LEFT(CRCP_y3,4)+1)&"-"&TEXT(VALUE(MID(CRCP_y3,3,2)+2),"00"),VALUE(LEFT(CRCP_y3,4)+1)) -> 2015-16 | G38: =IF(dms_RPT="financial",VALUE(LEFT(CRCP_y4,4)+1)&"-"&TEXT(VALUE(MID(CRCP_y4,3,2)+2),"00"),VALUE(LEFT(CRCP_y4,4)+1)) -> 2016-17 | H38: =IF(dms_RPT="financial",VALUE(LEFT(CRCP_y5,4)+1)&"-"&TEXT(VALUE(MID(CRCP_y5,3,2)+2),"00"),VALUE(LEFT(CRCP_y5,4)+1)) -> 2017-18 | I38: =IF(dms_RPT="financial",VALUE(LEFT(CRCP_y6,4)+1)&"-"&TEXT(VALUE(MID(CRCP_y6,3,2)+2),"00"),VALUE(LEFT(CRCP_y6,4)+1)) -> 2018-19 | J38: =IF(dms_RPT="financial",VALUE(LEFT(CRCP_y7,4)+1)&"-"&TEXT(VALUE(MID(CRCP_y7,3,2)+2),"00"),VALUE(LEFT(CRCP_y7,4)+1)) -> 2019-20 | K38: =IF(dms_RPT="financial",VALUE(LEFT(CRCP_y8,4)+1)&"-"&TEXT(VALUE(MID(CRCP_y8,3,2)+2),"00"),VALUE(LEFT(CRCP_y8,4)+1)) -> 2020-21 | L38: =IF(dms_RPT="financial",VALUE(LEFT(CRCP_y9,4)+1)&"-"&TEXT(VALUE(MID(CRCP_y9,3,2)+2),"00"),VALUE(LEFT(CRCP_y9,4)+1)) -> 2021-22
B41: Previous regulatory control period | C41: =IF(dms_RPT="financial",VALUE(LEFT(PRCP_y2,4)-1)&"-"&TEXT(VALUE(MID(PRCP_y2,3,2)),"00"),VALUE(LEFT(PRCP_y2,4)-1)) -> 2007-08 | D41: =IF(dms_RPT="financial",VALUE(LEFT(PRCP_y3,4)-1)&"-"&TEXT(VALUE(MID(PRCP_y3,3,2)),"00"),VALUE(LEFT(PRCP_y3,4)-1)) -> 2008-09 | E41: =IF(dms_RPT="financial",VALUE(LEFT(PRCP_y4,4)-1)&"-"&TEXT(VALUE(MID(PRCP_y4,3,2)),"00"),VALUE(LEFT(PRCP_y4,4)-1)) -> 2009-10 | F41: =IF(dms_RPT="financial",VALUE(LEFT(PRCP_y5,4)-1)&"-"&TEXT(VALUE(RIGHT(PRCP_y5,2)-1),"00"),VALUE(LEFT(PRCP_y5,4)-1)) -> 2010-11 | G41: =IF(dms_RPT="financial",VALUE(LEFT(CRCP_y1,4)-1)&"-"&TEXT(VALUE(RIGHT(CRCP_y1,2)-1),"00"),VALUE(LEFT(CRCP_y1,4)-1)) -> 2011-12
B44: Commencing regulatory year | C44: 2016-17 | D44: CRY
B46: Last completed regulatory year | C46: 2021-22 | D46: dms_FinalYear
C49: DELETE NR 'CRY' IF NOT AN ANNUAL RIN (EB, CA , ARR)
C50: APPLY NR 'CRY' IF AN ANNUAL RIN (EB, CA , ARR) - including multi year annual RINs eg. Recast CA. EB
B52: Source | C52: Reporting | E52: Please select the correct submission type from the dropdown list.
B53: Data quality (actual, estimate, public, consolidated) | C53: Consolidated
B54: Amended RIN submission - amendment reason
B55: Submission Date | C55: dd/mm/yyyy | D55: dms_SubmissionDate | E55: Please enter date this file submitted to AER (dd/mm/yyyy)
B56: EBSS - First application of scheme in forthcoming period? | C56: No
B57: Sector | C57: =INDEX(dms_Sector_List,MATCH(dms_TradingName,dms_TradingName_List)) -> Electricity | D57: dms_Sector | E57: =INDEX(dms_Sector_List,MATCH(dms_TradingName,dms_TradingName_List))
B58: Segment | C58: =INDEX(dms_Segment_List,MATCH(dms_TradingName,dms_TradingName_List)) -> Distribution | D58: dms_Segment | E58: =INDEX(dms_Segment_List,MATCH(dms_TradingName,dms_TradingName_List))
B59: Regulatory Year Ending | C59: =IF(dms_MultiYear_Flag=1,LEFT(dms_Specified_FinalYear,2)&RIGHT(dms_Specified_FinalYear,2),INDEX(dms_RYE_Formula_Result,MATCH(dms_Model,dms_Model_List))) -> 2017 | D59: dms_RYE | E59: =IF(dms_MultiYear_Flag=1,LEFT(dms_Specified_FinalYear,2)&RIGHT(dms_Specified_FinalYear,2),INDEX(dms_RYE_Formula_Result,MATCH(dms_Model,dms_Model_List)))
B60: Reporting Period Type | C60: =INDEX(dms_RPT_List,MATCH(dms_TradingName,dms_TradingName_List)) -> Financial | D60: dms_RPT | E60: =INDEX(dms_RPT_List,MATCH(dms_TradingName,dms_TradingName_List))
B61: Model or RIN Type | C61: EB | D61: dms_Model | E61: Drop down selection
B62: Security Classification | C62: Public | D62: dms_Classification | E62: Always Public
B63: Template - version no. | C63: 5 | D63: dms_TemplateNumber
B64: Dollar $ real month | C64: =INDEX(dms_RPTMonth_List,MATCH(dms_TradingName,dms_TradingName_List)) -> June | D64: dms_RPTMonth | E64: =INDEX(dms_RPTMonth_List,MATCH(dms_TradingName,dms_TradingName_List))
B65: Dollar $ real (the last month before the FRCP_y1) | C65: =CONCATENATE(dms_RPTMonth)&" "&VALUE((LEFT(dms_CRCP_FinalYear_Result,2)&RIGHT(dms_CRCP_FinalYear_Result,2))) -> June 2017 | D65: dms_DollarReal | E65: =IF(SUM(dms_SingleYear_Model)>0,CONCATENATE(dms_RPTMonth)&" "&VALUE((LEFT(CRY,2))&RIGHT(CRY,2)),CONCATENATE(dms_RPTMonth)&" "&VALUE((LEFT(dms_CRCP_FinalYear_Result,2)&RIGHT(dms_CRCP_FinalYear_Result,2))))
B66: Form of control | C66: =INDEX(dms_FormControl_List,MATCH(dms_TradingName,dms_TradingName_List)) -> Revenue cap | D66: dms_FormControl | E66: =INDEX(dms_FormControl_List,MATCH(dms_TradingName,dms_TradingName_List))
B67: RIN response - version no. | C67: 1 | D67: dms_RINversion
B68: Jurisdiction | C68: =INDEX(dms_JurisdictionList,MATCH(dms_TradingName,dms_TradingName_List)) -> - | D68: dms_Jurisdiction | E68: =INDEX(dms_JurisdictionList,MATCH(dms_TradingName,dms_TradingName_List))
B69: Backcast Multiyear EB, CA or ARR? | C69: 0 | D69: dms_MultiYear_Flag | E69: 1=y, 0-n
C70: 2013 | D70: dms_Specified_FinalYear | E70: The result here is returned to dms_CRCP_FinalYear_Result if dms_MultiYear_Flag is set to 1
B71: Single Year Model T/F | C71: =IF(dms_Model="EB",1,0) -> 1 | D71: dms_EB
C72: =IF(dms_Model="CA",1,0) -> 0 | D72: dms_CA | E72: =dms_SingleYear_Model
C73: =IF(dms_Model="ARR",1,0) -> 0 | D73: dms_ARR
B74: Single Year Final Year Reference | C74: CRY | D74: dms_SingleYear_FinalYear_Ref | E74: This is the reference for EB, CA & ARR RINs
B75: Single Year Final Year Result | C75: =INDIRECT(dms_SingleYear_FinalYear_Ref) -> 2016-17 | D75: dms_SingleYear_FinalYear_Result | E75: =INDIRECT(dms_SingleYear_FinalYear_Ref) | I75: Formula errors OK
B76: FRCP length in years | C76: =INDEX(dms_FRCPlength_List,MATCH(dms_TradingName,dms_TradingName_List)) -> 5 | D76: dms_FRCPlength_Num | E76: =INDEX(dms_FRCPlength_List,MATCH(dms_TradingName,dms_TradingName_List))
B77: Multi Year Final Year Reference | C77: =INDEX(dms_FinalYear_List,MATCH(dms_FRCPlength_Num,dms_FRCPlength_Num_List)) -> dms_FRCP_y5 | D77: dms_MultiYear_FinalYear_Ref | E77: =INDEX(dms_FinalYear_List,MATCH(dms_FRCPlength_Num,dms_FRCPlength_Num_List))
B78: Multi Year Final Year Result | C78: =IF(dms_MultiYear_Flag=0,INDIRECT(dms_MultiYear_FinalYear_Ref),dms_Specified_FinalYear) -> 2021-22 | D78: dms_MultiYear_FinalYear_Result | E78: =IF(dms_MultiYear_Flag=0,INDIRECT(dms_MultiYear_FinalYear_Ref),dms_Specified_FinalYear) | I78: Formula errors OK
B79: CRCP length in years | C79: =INDEX(dms_CRCPlength_List,MATCH(dms_TradingName,dms_TradingName_List)) -> 5 | D79: dms_CRCPlength_Num | E79: =INDEX(dms_CRCPlength_List,MATCH(dms_TradingName,dms_TradingName_List))
B80: CRCP Final Year Reference | C80: =INDEX(dms_CFinalYear_List,MATCH(dms_CRCPlength_Num,dms_CRCPlength_Num_List)) -> CRCP_y5 | D80: dms_CRCP_FinalYear_Ref | E80: =INDEX(dms_CFinalYear_List,MATCH(dms_CRCPlength_Num,dms_CRCPlength_Num_List))
B81: CRCP First Year Result | C81: =INDEX(dms_CRCP_years,MATCH(dms_CRCPlength_Num,dms_CRCP_index)) -> 2012-13 | D81: dms_CRCP_FirstYear_Result | E81: =INDEX(dms_CRCP_years,MATCH(dms_CRCPlength_Num,dms_CRCP_index))
B82: CRCP Final Year Result | C82: =IF(dms_MultiYear_Flag=0,(IF(SUM(dms_SingleYear_Model)>0,CRY,dms_CRCP_yZ)),dms_Specified_FinalYear) -> 2016-17 | D82: dms_CRCP_FinalYear_Result | E82: =IF(dms_MultiYear_Flag=0,(IF(SUM(dms_SingleYear_Model)>0,CRY,dms_CRCP_yZ)),dms_Specified_FinalYear)
B83: Table 6.6.3 - Public lighting repair - no. business days | C83: =INDEX(dms_663_List,MATCH(dms_TradingName,dms_TradingName_List)) -> 2 | D83: dms_663
B84: Distribution Determination Reference | C84: =INDEX(dms_DeterminationRef_List,MATCH(dms_TradingName,dms_TradingName_List)) -> distribution determination
B85: Backcast templates only - unit of measure | C85: $0s | D85: dms_Backcast_UOM | E85: If the cover sheet is for Backcast data ensure to apply dms_Backcast_UOM named range to this field. Otherwise, do not apply this named range.
B86: EB/CA Unit of Measure for Monetary Values | C86: $0s | D86: dms_dollar_nom_UOM | E86: If the cover sheet is attached to an EB files make sure this field is set
B88: discard this record? | C88: NO | D88: dms_DISCARD | E88: If record is to be discarded from DB set this flag to YES
B90: USES NAMED RANGES FLAG | C90: yes | D90: dms_Defined_Names_Used

Sheet 3.1 Revenue
B1: REGULATORY REPORTING STATEMENT
B2: =dms_TradingName -> Australian Distribution Co.
B3: =CONCATENATE("Benchmarking RIN response ",CRY) -> Benchmarking RIN response 2016-17
B4: 3.1 REVENUE
B6: There are THREE tables on this worksheet. Each table has been grouped for ease of navigation. See the Instructions sheet on how to group or ungroup tables.
B8: 3.1.1 - REVENUE GROUPING BY CHARGEABLE QUANTITY
C9: Standard control services | D9: Alternative control services
C10: REVENUE ($0's)
C11: =CRY -> 2016-17 | D11: =CRY -> 2016-17
A12: DREV0101 | B12: Revenue from Fixed Customer Charges | C12: 56463747.15 | D12: 0
A13: DREV0102 | B13: Revenue from Energy Delivery charges where time of use is not a determinant | C13: 244125410.5 | D13: 0
A14: DREV0103 | B14: Revenue from On–Peak Energy Delivery charges | C14: 37620042.27 | D14: 0
A15: DREV0104 | B15: Revenue from Shoulder period Energy Delivery Charges | C15: 10217064.01 | D15: 0
A16: DREV0105 | B16: Revenue from Off–Peak Energy Delivery charges | C16: 4121483.48 | D16: 0
A17: DREV0106 | B17: Revenue from controlled load customer charges | C17: 911014.01 | D17: 0
A18: DREV0107 | B18: Revenue from unmetered supplies | C18: 4480468.57 | D18: 0
A19: DREV0108 | B19: Revenue from Contracted Maximum Demand charges | C19: 1365789.1 | D19: 0
A20: DREV0109 | B20: Revenue from Measured Maximum Demand charges | C20: 36889618.4 | D20: 0
A21: DREV0110 | B21: Revenue from metering charges | C21: 0 | D21: 14979344.87
A22: DREV0111 | B22: Revenue from connection charges | C22: 0 | D22: 0
A23: DREV0112 | B23: Revenue from public lighting charges | C23: 0 | D23: 5428691.95
A24: DREV0113 | B24: Revenue from other Sources | C24: 0 | D24: 4016471.68
A25: DREV01 | B25: Total revenue by chargeable quantity | C25: =SUM(C12:C24) -> 396194637.5 | D25: =SUM(D12:D24) -> 24424508.5
B28: 3.1.2 - REVENUE GROUPING BY CUSTOMER TYPE OR CLASS
C29: Standard control services | D29: Alternative control services
C30: REVENUE ($0's)
C31: =CRY -> 2016-17 | D31: =CRY -> 2016-17
A32: DREV0201 | B32: Revenue from residential Customers | C32: 225712789 | D32: 13054056.62
A33: DREV0202 | B33: Revenue from Non residential customers not on demand tariffs | C33: 106785422.4 | D33: 1919433.679
A34: DREV0203 | B34: Revenue from Non-residential low voltage demand tariff customers | C34: 38133432.42 | D34: 5854.57
A35: DREV0204 | B35: Revenue from Non-residential high voltage demand tariff customers | C35: 21082525.19 | D35: 0
A36: DREV0205 | B36: Revenue from unmetered supplies | C36: 4480468.57 | D36: 5428691.95
A37: DREV0206 | B37: Revenue from Other Customers | C37: 0 | D37: 4016471.68
A38: DREV02 | B38: Total revenue by customer class | C38: =SUM(C32:C37) -> 396194637.5 | D38: =SUM(D32:D37) -> 24424508.5
B40: 3.1.3 - REVENUE (penalties) ALLOWED (deducted) THROUGH INCENTIVE SCHEMES
C41: Standard control services | D41: Alternative control services
C42: REVENUE ($0's)
C43: =CRY -> 2016-17 | D43: =CRY -> 2016-17
A44: DREV0301 | B44: EBSS | C44: 0
A45: DREV0302 | B45: STPIS | C45: 8298028.56
A46: DREV0303 | B46: F-Factor | C46: 0
A47: DREV0304 | B47: S-Factor True up
A48: DREV0305 | B48: Other
A49: DREV03 | B49: Total revenue of incentive schemes | C49: =SUM(C44:C48) -> 8298028.56 | D49: =SUM(D44:D48) -> 0

Sheet 3.2 Operating expenditure
B1: REGULATORY REPORTING STATEMENT
B2: =dms_TradingName -> Australian Distribution Co.
B3: =CONCATENATE("Benchmarking RIN response ",CRY) -> Benchmarking RIN response 2016-17
B4: 3.2 OPERATING EXPENDITURE
B6: There are THREE tables on this worksheet. Each table has been grouped for ease of navigation. See the Instructions sheet on how to group or ungroup tables.
B8: Instructions
B9: =CONCATENATE("In table 3.2.1, please list each opex category reported in response to ",dms_TradingName, "'s annual reporting RIN and report opex for each category.") -> In table 3.2.1, please list each opex category reported in response to Australian Distribution Co.'s annual reporting RIN and report opex for each category.
B12: 3.2.1 - OPEX CATEGORIES
B13: CURRENT OPEX CATEGORIES AND COST ALLOCATIONS
C14: Standard control services | D14: Alternative control services
C15: EXPENDITURE ($0's)
C16: =CRY -> 2016-17 | D16: =CRY -> 2016-17
A17: DOPEX0101 | B17: Overhead network and structures | C17: 6406268.715
A18: DOPEX0102 | B18: Underground network | C18: 181695.2335
A19: DOPEX0103 | B19: Ground mounted substations | C19: 772075.3021
A20: DOPEX0104 | B20: Zone substations | C20: 1721247.209
A21: DOPEX0105 | B21: Decommissioned assets | C21: 0
A22: DOPEX0106 | B22: Connection assets | C22: 568066.2148
A23: DOPEX0107 | B23: Other network asset maintenance - routine costs (itemise in table 3) | C23: 1440557.335
A24: DOPEX0108 | B24: Emergency and unscheduled power system response & repair | C24: 0
A25: DOPEX0109 | B25: Vegetation management | C25: 22327131.04
A26: DOPEX0110 | B26: Connection asset repair | C26: 0
A27: DOPEX0111 | B27: Other non network asset maintenance - routine costs (itemise in table 3) | C27: 0
A28: DOPEX0112 | B28: Overhead network & structures | C28: 4212663.228
A29: DOPEX0113 | B29: Underground network | C29: 477027.0782
A30: DOPEX0114 | B30: Ground mounted substations | C30: 695494.8878
A31: DOPEX0115 | B31: Zone substations | C31: 22596.91964
A32: DOPEX0116 | B32: Decommissioned assets | C32: 692032.1374
A33: DOPEX0117 | B33: Connection assets | C33: 0
A34: DOPEX0118 | B34: Other network asset maintenance - non-routine costs (itemise in table 3) | C34: 2468404.578
A35: DOPEX0119 | B35: Emergency and unscheduled power system response & repair | C35: 22067669.76
A36: DOPEX0120 | B36: Vegetation management | C36: 617244.5558
A37: DOPEX0121 | B37: Connection asset repair | C37: 51997.39551
A38: DOPEX0122 | B38: Other non-network asset maintenance- non-routine costs (itemise in table 3) | C38: 359685.6804
A39: DOPEX0123 | B39: Public Lighting | D39: 2738852.476
A40: DOPEX0124 | B40: Metering | D40: 6538684.426
A41: DOPEX0125 | B41: Fee based service | D41: 3259730.574
A42: DOPEX0126 | B42: Quoted service | D42: 3490328.991
A43: DOPEX0127 | B43: Negotiated Services | D43: 131593.006
A44: DOPEX0128 | B44: Network management | C44: 4525999.911 | D44: 1171390.105
A45: DOPEX0129 | B45: GSL payments | C45: 2988540 | D45: 0
A46: DOPEX0130 | B46: Customer Service | C46: 3787910.509 | D46: 1800505.544
A47: DOPEX0131 | B47: Regulatory compliance expenditure | C47: 1113461.455 | D47: 189512.9456
A48: DOPEX0132 | B48: Electrical safety levy | C48: 3844500 | D48: 0
A49: DOPEX0133 | B49: NEM levy | C49: 590138.4 | D49: 0
A50: DOPEX0134 | B50: Other network division management costs (itemise in table 3) | C50: 1024704.027 | D50: 0
A51: DOPEX0135 | B51: System operations | C51: 0 | D51: 0
A52: DOPEX0136 | B52: Corporate and shared services costs | C52: 9352610.306 | D52: 2191253.729
A53: DOPEX0137 | B53: NEM and contestability related costs | C53: 867071.6395 | D53: 147576.9994
A54: DOPEX0138 | B54: Other Non-network division management costs (itemise in table 3) | C54: 0 | D54: 0
A55: DOPEX0139 | B55: Advertising/Marketing | C55: 452887.5135 | D55: 21603.27363
A56: DOPEX0140
A57: DOPEX0141
A58: DOPEX0142
A59: DOPEX01 | B59: Total opex | C59: =SUM(C17:C58) -> 93629681.03 | D59: =SUM(D17:D58) -> 21681032.07
B63: 3.2.2 - OPEX CONSISTENCY
B64: CURRENT COST ALLOCATION APPROACH
C65: Standard control services | D65: Alternative control services
C66: EXPENDITURE ($0's)
C67: =CRY -> 2016-17 | D67: =CRY -> 2016-17
A68: DOPEX0201 | B68: Opex for network services | C68: 93577683.63 | D68: 4488462.517
A69: DOPEX0202 | B69: Opex for metering | C69: 0 | D69: 8302716.56
A70: DOPEX0203 | B70: Opex for connection services | C70: 51997.39551 | D70: 5057693.386
A71: DOPEX0204 | B71: Opex for public lighting | C71: 0 | D71: 3832159.607
A72: DOPEX0205 | B72: Opex for amounts payable for easement levy or similar direct charges on DNSP
A73: DOPEX0206 | B73: Opex for transmission connection point planning
B77: 3.2.4 - OPEX FOR HIGH VOLTAGE CUSTOMERS
C78: End user costs (not standard control services)
A79: DOPEX0401 | B79: Opex for high voltage customers | C79: 276927.12

Sheet 3.2.3 Provisions
B1: REGULATORY REPORTING STATEMENT
B2: =dms_TradingName -> Australian Distribution Co.
B3: =CONCATENATE("Benchmarking RIN response ",CRY) -> Benchmarking RIN response 2016-17
B4: 3.2 OPERATING EXPENDITURE
B6: The is ONE table on this worksheet. Each Provision has been grouped for ease of navigation. See the Instructions sheet on how to group and ungroup tables.
B8: Instructions
B9: =CONCATENATE("In table 3.2.3, please list each opex category reported in response to ",dms_TradingName, "'s annual reporting RIN and report opex for each category.") -> In table 3.2.3, please list each opex category reported in response to Australian Distribution Co.'s annual reporting RIN and report opex for each category.
B11: 3.2.3 - PROVISIONS
C12: VALUE ($0's)
C13: =CRY -> 2016-17
A14: DOPEX03A | B14: Long Service Leave
B15: Long Service Leave
A16: DOPEX0301A | B16: Opening balance (the carrying amount at the beginning of the period) | C16: 8703903.39
B17: Additional provisions made in the period, including increases to existing provisions
A18: DOPEX0302A | B18: Opex component | C18: 854769.2308
A19: DOPEX0303A | B19: Capex component | C19: 1368866.931
A20: DOPEX0304A | B20: Other component | C20: 46180.88439
B21: Amounts used (that is, incurred and charged against the provision) during the period
A22: DOPEX0305A | B22: Opex component | C22: -595791.0101
A23: DOPEX0306A | B23: Capex component | C23: -954127.245
A24: DOPEX0307A | B24: Other component
B25: Unused amounts reversed during the period
A26: DOPEX0308A | B26: Opex component
A27: DOPEX0309A | B27: Capex component
A28: DOPEX0310A | B28: Other component
B29: The increase during the period in the discounted amount arising from the passage of time and the effect of any change in the discount rate
A30: DOPEX0311A | B30: Opex component
A31: DOPEX0312A | B31: Capex component
A32: DOPEX0313A | B32: Other component
A33: DOPEX0314A | B33: Closing balance (carrying amount at the end of the period) | C33: 9423802.181
A34: DOPEX03B | B34: Annual Leave
B35: Annual Leave
A36: DOPEX0301B | B36: Opening balance (the carrying amount at the beginning of the period) | C36: 5358494.518
B37: Additional provisions made in the period, including increases to existing provisions
A38: DOPEX0302B | B38: Opex component | C38: 2589215.649
A39: DOPEX0303B | B39: Capex component | C39: 4146489.544
A40: DOPEX0304B | B40: Other component | C40: 28202.95716
B41: Amounts used (that is, incurred and charged against the provision) during the period
A42: DOPEX0305B | B42: Opex component | C42: -2405301.317
A43: DOPEX0306B | B43: Capex component | C43: -3851960.638
A44: DOPEX0307B | B44: Other component
B45: Unused amounts reversed during the period
A46: DOPEX0308B | B46: Opex component
A47: DOPEX0309B | B47: Capex component
A48: DOPEX0310B | B48: Other component
B49: The increase during the period in the discounted amount arising from the passage of time and the effect of any change in the discount rate
A50: DOPEX0311B | B50: Opex component
A51: DOPEX0312B | B51: Capex component
A52: DOPEX0313B | B52: Other component
A53: DOPEX0314B | B53: Closing balance (carrying amount at the end of the period) | C53: 5865140.712
A54: DOPEX03C | B54: RBF
B55: Defined Benefits Superannuation
A56: DOPEX0301C | B56: Opening balance (the carrying amount at the beginning of the period) | C56: 114598048.6
B57: Additional provisions made in the period, including increases to existing provisions
A58: DOPEX0302C | B58: Opex component | C58: 319239.3301
A59: DOPEX0303C | B59: Capex component | C59: 511244.6099
A60: DOPEX0304C | B60: Other component
B61: Amounts used (that is, incurred and charged against the provision) during the period
A62: DOPEX0305C | B62: Opex component | C62: -761552.5886
A63: DOPEX0306C | B63: Capex component | C63: -1219585.494
A64: DOPEX0307C | B64: Other component | C64: -15620148.03
B65: Unused amounts reversed during the period
A66: DOPEX0308C | B66: Opex component
A67: DOPEX0309C | B67: Capex component
A68: DOPEX0310C | B68: Other component
B69: The increase during the period in the discounted amount arising from the passage of time and the effect of any change in the discount rate
A70: DOPEX0311C | B70: Opex component
A71: DOPEX0312C | B71: Capex component
A72: DOPEX0313C | B72: Other component
A73: DOPEX0314C | B73: Closing balance (carrying amount at the end of the period) | C73: 97827246.45
A74: DOPEX03D | B74: SAF
B75: Superannuation
A76: DOPEX0301D | B76: Opening balance (the carrying amount at the beginning of the period) | C76: 1455821.683
B77: Additional provisions made in the period, including increases to existing provisions
A78: DOPEX0302D | B78: Opex component | C78: 1450181.166
A79: DOPEX0303D | B79: Capex component | C79: 2322387.107
A80: DOPEX0304D | B80: Other component | C80: 7763.932109
B81: Amounts used (that is, incurred and charged against the provision) during the period
A82: DOPEX0305D | B82: Opex component | C82: -1466652.06
A83: DOPEX0306D | B83: Capex component | C83: -2348764.358
A84: DOPEX0307D | B84: Other component
B85: Unused amounts reversed during the period
A86: DOPEX0308D | B86: Opex component
A87: DOPEX0309D | B87: Capex component
A88: DOPEX0310D | B88: Other component
B89: The increase during the period in the discounted amount arising from the passage of time and the effect of any change in the discount rate
A90: DOPEX0311D | B90: Opex component
A91: DOPEX0312D | B91: Capex component
A92: DOPEX0313D | B92: Other component
A93: DOPEX0314D | B93: Closing balance (carrying amount at the end of the period) | C93: 1420737.469
A94: DOPEX03E | B94: Timebank
B95: Timebank
A96: DOPEX0301E | B96: Opening balance (the carrying amount at the beginning of the period) | C96: 146008.025
B97: Additional provisions made in the period, including increases to existing provisions
A98: DOPEX0302E | B98: Opex component | C98: 37230.436
A99: DOPEX0303E | B99: Capex component | C99: 59622.54
A100: DOPEX0304E | B100: Other component | C100: 914.8838657
B101: Amounts used (that is, incurred and charged against the provision) during the period
A102: DOPEX0305E | B102: Opex component | C102: -35643.69908
A103: DOPEX0306E | B103: Capex component | C103: -57081.4662
A104: DOPEX0307E | B104: Other component
B105: Unused amounts reversed during the period
A106: DOPEX0308E | B106: Opex component
A107: DOPEX0309E | B107: Capex component
A108: DOPEX0310E | B108: Other component
B109: The increase during the period in the discounted amount arising from the passage of time and the effect of any change in the discount rate
A110: DOPEX0311E | B110: Opex component
A111: DOPEX0312E | B111: Capex component
A112: DOPEX0313E | B112: Other component
A113: DOPEX0314E | B113: Closing balance (carrying amount at the end of the period) | C113: 151050.7196
A114: DOPEX03F | B114: Workers Compensation
B115: Workers Compensation
A116: DOPEX0301F | B116: Opening balance (the carrying amount at the beginning of the period) | C116: 702663.6203
B117: Additional provisions made in the period, including increases to existing provisions
A118: DOPEX0302F | B118: Opex component | C118: 134665.6091
A119: DOPEX0303F | B119: Capex component | C119: 215659.7271
A120: DOPEX0304F | B120: Other component | C120: 3444.378922
B121: Amounts used (that is, incurred and charged against the provision) during the period
A122: DOPEX0305F | B122: Opex component | C122: -149806.39
A123: DOPEX0306F | B123: Capex component | C123: -239906.873
A124: DOPEX0307F | B124: Other component
B125: Unused amounts reversed during the period
A126: DOPEX0308F | B126: Opex component
A127: DOPEX0309F | B127: Capex component
A128: DOPEX0310F | B128: Other component
B129: The increase during the period in the discounted amount arising from the passage of time and the effect of any change in the discount rate
A130: DOPEX0311F | B130: Opex component
A131: DOPEX0312F | B131: Capex component
A132: DOPEX0313F | B132: Other component
A133: DOPEX0314F | B133: Closing balance (carrying amount at the end of the period) | C133: 666720.0724
A134: DOPEX03G | B134: Payroll Tax
B135: Payroll Tax
A136: DOPEX0301G | B136: Opening balance (the carrying amount at the beginning of the period) | C136: 935059.7268
B137: Additional provisions made in the period, including increases to existing provisions
A138: DOPEX0302G | B138: Opex component | C138: 945376.4769
A139: DOPEX0303G | B139: Capex component | C139: 1513969.56
A140: DOPEX0304G | B140: Other component | C140: 4716.0946
B141: Amounts used (that is, incurred and charged against the provision) during the period
A142: DOPEX0305G | B142: Opex component | C142: -955952.4433
A143: DOPEX0306G | B143: Capex component | C143: -1530906.401
A144: DOPEX0307G | B144: Other component
B145: Unused amounts reversed during the period
A146: DOPEX0308G | B146: Opex component
A147: DOPEX0309G | B147: Capex component
A148: DOPEX0310G | B148: Other component
B149: The increase during the period in the discounted amount arising from the passage of time and the effect of any change in the discount rate
A150: DOPEX0311G | B150: Opex component
A151: DOPEX0312G | B151: Capex component
A152: DOPEX0313G | B152: Other component
A153: DOPEX0314G | B153: Closing balance (carrying amount at the end of the period) | C153: 912263.0137
A154: DOPEX03H | B154: Provision name
B155: Brief description of provision
A156: DOPEX0301H | B156: Opening balance (the carrying amount at the beginning of the period)
B157: Additional provisions made in the period, including increases to existing provisions
A158: DOPEX0302H | B158: Opex component
A159: DOPEX0303H | B159: Capex component
A160: DOPEX0304H | B160: Other component
B161: Amounts used (that is, incurred and charged against the provision) during the period
A162: DOPEX0305H | B162: Opex component
A163: DOPEX0306H | B163: Capex component
A164: DOPEX0307H | B164: Other component
B165: Unused amounts reversed during the period
A166: DOPEX0308H | B166: Opex component
A167: DOPEX0309H | B167: Capex component
A168: DOPEX0310H | B168: Other component
B169: The increase during the period in the discounted amount arising from the passage of time and the effect of any change in the discount rate
A170: DOPEX0311H | B170: Opex component
A171: DOPEX0312H | B171: Capex component
A172: DOPEX0313H | B172: Other component
A173: DOPEX0314H | B173: Closing balance (carrying amount at the end of the period)
A174: DOPEX03I | B174: Provision name
B175: Brief description of provision
A176: DOPEX0301I | B176: Opening balance (the carrying amount at the beginning of the period)
B177: Additional provisions made in the period, including increases to existing provisions
A178: DOPEX0302I | B178: Opex component
A179: DOPEX0303I | B179: Capex component
A180: DOPEX0304I | B180: Other component
B181: Amounts used (that is, incurred and charged against the provision) during the period
A182: DOPEX0305I | B182: Opex component
A183: DOPEX0306I | B183: Capex component
A184: DOPEX0307I | B184: Other component
B185: Unused amounts reversed during the period
A186: DOPEX0308I | B186: Opex component
A187: DOPEX0309I | B187: Capex component
A188: DOPEX0310I | B188: Other component
B189: The increase during the period in the discounted amount arising from the passage of time and the effect of any change in the discount rate
A190: DOPEX0311I | B190: Opex component
A191: DOPEX0312I | B191: Capex component
A192: DOPEX0313I | B192: Other component
A193: DOPEX0314I | B193: Closing balance (carrying amount at the end of the period)
A194: DOPEX03J | B194: Provision name
B195: Brief description of provision
A196: DOPEX0301J | B196: Opening balance (the carrying amount at the beginning of the period)
B197: Additional provisions made in the period, including increases to existing provisions
A198: DOPEX0302J | B198: Opex component
A199: DOPEX0303J | B199: Capex component
A200: DOPEX0304J | B200: Other component
B201: Amounts used (that is, incurred and charged against the provision) during the period
A202: DOPEX0305J | B202: Opex component
A203: DOPEX0306J | B203: Capex component
... 170 more rows

Sheet 3.3 Assets (RAB)
B1: REGULATORY REPORTING STATEMENT
B2: =dms_TradingName -> Australian Distribution Co.
B3: =CONCATENATE("Benchmarking RIN response ",CRY) -> Benchmarking RIN response 2016-17
B4: 3.3 ASSETS
B6: There are FOUR tables on this worksheet. Each table has been grouped (and sub-grouped) for ease of navigation. See the Instructions sheet on how to group or ungroup tables.
B8: 3.3.1 - REGULATORY ASSET BASE VALUES
C9: Network services | D9: Standard control services | E9: Alternative control services
C10: VALUE ($0's)
C11: =CRY -> 2016-17 | D11: =CRY -> 2016-17 | E11: 2016-17
B12: FOR TOTAL ASSET BASE
A13: DRAB0101 | B13: Opening value | C13: 1514902770 | D13: 1615267001 | E13: 51695906.86
A14: DRAB0102 | B14: Inflation addition | C14: 19845226.27 | D14: 21159997.71 | E14: 677216.3799
A15: DRAB0103 | B15: Straight line depreciation | C15: -77552989.35 | D15: -89050627.8 | E15: -6543861.89
A16: DRAB0105 | B16: Actual additions (recognised in RAB) | C16: 129232589.2 | D16: 134028170 | E16: 8626693.066
A17: DRAB0106 | B17: Disposals | C17: -374181.7867 | D17: -374181.7867 | E17: -25146.45431
A18: DRAB0107 | B18: Closing value | C18: =SUM(C13:C17) -> 1586053414 | D18: =SUM(D13:D17) -> 1681030359 | E18: 54430807.96
B21: 3.3.2 - ASSET VALUE ROLL FORWARD
C22: Network services | D22: Standard control services | E22: Alternative control services
C23: VALUE ($0's)
C24: =CRY -> 2016-17 | D24: =CRY -> 2016-17 | E24: 2016-17
B25: For overhead network assets less than 33kV:
A26: DRAB0201 | B26: Opening value | C26: 677816808.2 | D26: 681509828.5
A27: DRAB0202 | B27: Inflation addition | C27: 8879400.187 | D27: 8927778.754
A28: DRAB0203 | B28: Straight line depreciation | C28: -34503483.18 | D28: -35913237.82
A29: DRAB0205 | B29: Actual additions (recognised in RAB) | C29: 68973403.88 | D29: 68973403.88
A30: DRAB0206 | B30: Disposals | C30: 0 | D30: 0
A31: DRAB0207 | B31: Closing value | C31: =SUM(C26:C30) -> 721166129 | D31: =SUM(D26:D30) -> 723497773.3 | E31: =SUM(E26:E30) -> 0
B32: For underground network assets less than 33kV:
A33: DRAB0301 | B33: Opening value | C33: 373389364.2 | D33: 375484200.9
A34: DRAB0302 | B34: Inflation addition | C34: 4891400.671 | D34: 4918843.032
A35: DRAB0303 | B35: Straight line depreciation | C35: -9620202.123 | D35: -9765009.958
A36: DRAB0305 | B36: Actual additions (recognised in RAB) | C36: 11479010.48 | D36: 11479010.48
A37: DRAB0306 | B37: Disposals | C37: 0 | D37: 0
A38: DRAB0307 | B38: Closing value | C38: =SUM(C33:C37) -> 380139573.2 | D38: =SUM(D33:D37) -> 382117044.4 | E38: =SUM(E33:E37) -> 0
B39: For distribution substations and transformers:
A40: DRAB0401 | B40: Opening value | C40: 241543939.9 | D40: 243014256
A41: DRAB0402 | B41: Inflation addition | C41: 3164225.612 | D41: 3183486.753
A42: DRAB0403 | B42: Straight line depreciation | C42: -11440433.45 | D42: -11871981.31
A43: DRAB0405 | B43: Actual additions (recognised in RAB) | C43: 13432839.82 | D43: 13432839.82
A44: DRAB0406 | B44: Disposals | C44: 0 | D44: 0
A45: DRAB0407 | B45: Closing value | C45: =SUM(C40:C44) -> 246700571.8 | D45: =SUM(D40:D44) -> 247758601.2 | E45: =SUM(E40:E44) -> 0
B46: For overhead network assets 33kV and above:
A47: DRAB0501 | B47: Opening value | C47: 12749899.99 | D47: 12782663.13
A48: DRAB0502 | B48: Inflation addition | C48: 167023.6899 | D48: 167452.887
A49: DRAB0503 | B49: Straight line depreciation | C49: -415163.4234 | D49: -423180.2714
A50: DRAB0505 | B50: Actual additions (recognised in RAB) | C50: 245503.3366 | D50: 245503.3366
A51: DRAB0506 | B51: Disposals | C51: 0 | D51: 0
A52: DRAB0507 | B52: Closing value | C52: =SUM(C47:C51) -> 12747263.59 | D52: =SUM(D47:D51) -> 12772439.08 | E52: =SUM(E47:E51) -> 0
B53: For underground network assets 33kV and above:
A54: DRAB0601 | B54: Opening value | C54: 10116657.58 | D54: 10128190.34
A55: DRAB0602 | B55: Inflation addition | C55: 132528.2142 | D55: 132679.2935
A56: DRAB0603 | B56: Straight line depreciation | C56: -278113.8039 | D56: -278803.3323
A57: DRAB0605 | B57: Actual additions (recognised in RAB) | C57: 8004.694072 | D57: 8004.694072
A58: DRAB0606 | B58: Disposals | C58: 0 | D58: 0
A59: DRAB0607 | B59: Closing value | C59: =SUM(C54:C58) -> 9979076.68 | D59: =SUM(D54:D58) -> 9990071 | E59: =SUM(E54:E58) -> 0
B60: Zone substations and transformers
A61: DRAB0701 | B61: Opening value | C61: 53980695.53 | D61: 54224169
A62: DRAB0702 | B62: Inflation addition | C62: 707147.1114 | D62: 710336.6139
A63: DRAB0703 | B63: Straight line depreciation | C63: -1587001.925 | D63: -1700579.11
A64: DRAB0705 | B64: Actual additions (recognised in RAB) | C64: 1962582.86 | D64: 1962582.86
A65: DRAB0706 | B65: Disposals | C65: 0 | D65: 0
A66: DRAB0707 | B66: Closing value | C66: =SUM(C61:C65) -> 55063423.57 | D66: =SUM(D61:D65) -> 55196509.36 | E66: =SUM(E61:E65) -> 0
B67: For easements:
A68: DRAB0801 | B68: Opening value
A69: DRAB0802 | B69: Inflation addition
A70: DRAB0805 | B70: Actual additions (recognised in RAB)
A71: DRAB0806 | B71: Disposals
A72: DRAB0807 | B72: Closing value | C72: =SUM(C68:C71) -> 0 | D72: =SUM(D68:D71) -> 0 | E72: =SUM(E68:E71) -> 0
B73: For meters:
A74: DRAB0901 | B74: Opening value | E74: 43685219.7
A75: DRAB0902 | B75: Inflation addition | E75: 572276.378
A76: DRAB0903 | B76: Straight line depreciation | E76: -3866587.479
A77: DRAB0905 | B77: Actual additions (recognised in RAB) | E77: 6623750.186
A78: DRAB0906 | B78: Disposals | E78: 0
A79: DRAB0907 | B79: Closing value | C79: =SUM(C74:C78) -> 0 | D79: =SUM(D74:D78) -> 0 | E79: =SUM(E74:E78) -> 47014658.78
B80: For “other” asset items with long lives:
A81: DRAB1001 | B81: Opening value | C81: 69355925.05 | D81: 162174214.5 | E81: 431107.0892
A82: DRAB1002 | B82: Inflation addition | C82: 908562.6181 | D82: 2124482.21 | E82: 5647.502868
A83: DRAB1003 | B83: Straight line depreciation | C83: -2504635.101 | D83: -6997349.798 | E83: -29712.3597
A84: DRAB1005 | B84: Actual additions (recognised in RAB) | C84: 15884155.06 | D84: 20679735.94 | E84: 0
A85: DRAB1006 | B85: Disposals | C85: 0 | D85: 0 | E85: 0
A86: DRAB1007 | B86: Closing value | C86: =SUM(C81:C85) -> 83644007.62 | D86: =SUM(D81:D85) -> 177981082.8 | E86: =SUM(E81:E85) -> 407042.2323
B87: For “other” asset items with short lives:
A88: DRAB1101 | B88: Opening value | C88: 75949478.42 | D88: 75949478.42 | E88: 7579580.073
A89: DRAB1102 | B89: Inflation addition | C89: 994938.1673 | D89: 994938.1673 | E89: 99292.49896
A90: DRAB1103 | B90: Straight line depreciation | C90: -17203956.35 | D90: -22100486.19 | E90: -2647562.051
A91: DRAB1105 | B91: Actual additions (recognised in RAB) | C91: 17247089.04 | D91: 17247089.04 | E91: 2002942.88
A92: DRAB1106 | B92: Disposals | C92: -374181.7867 | D92: -374181.7867 | E92: -25146.45431
A93: DRAB1107 | B93: Closing value | C93: =SUM(C88:C92) -> 76613367.49 | D93: =SUM(D88:D92) -> 71716837.64 | E93: =SUM(E88:E92) -> 7009106.947
B97: 3.3.3 - TOTAL DISAGGREGATED RAB ASSET VALUES
C98: Network services | D98: Standard control services | E98: Alternative control services
C99: VALUE ($0's)
C100: =CRY -> 2016-17 | D100: =CRY -> 2016-17 | E100: 2016-17
A101: DRAB1201 | B101: Overhead distribution assets (wires and poles) | C101: 699491468.6 | D101: 702503800.9 | E101: 0
A102: DRAB1202 | B102: Underground distribution assets (cables, ducts etc) | C102: 376764468.7 | D102: 378800622.7 | E102: 0
A103: DRAB1203 | B103: Distribution substations including transformers | C103: 244122255.9 | D103: 245386428.6 | E103: 0
A104: DRAB1204 | B104: Overhead assets 33kV and above (wires and towers / poles etc) | C104: 12748581.79 | D104: 12777551.1 | E104: 0
A105: DRAB1205 | B105: Underground assets 33kV and above (cables, ducts etc) | C105: 10047867.13 | D105: 10059130.67 | E105: 0
A106: DRAB1206 | B106: Zone substations | C106: 54522059.55 | D106: 54710339.18 | E106: 0
A107: DRAB1207 | B107: Easements
A108: DRAB1208 | B108: Meters | C108: 0 | D108: 0 | E108: 45349939.24
A109: DRAB1209 | B109: "Other" assets with long lives | C109: 76499966.33 | D109: 170077648.7 | E109: 419074.6607
A110: DRAB1210 | B110: "Other" assets with short lives | C110: 76281422.95 | D110: 73833158.03 | E110: 7294343.51
A111: DRAB13 | B111: Value of Capital Contributions or Contributed Assets (included in the above) | C111: 9345161.506 | D111: 11039711.42 | E111: 0
B114: 3.3.4 - ASSET LIVES
C115: Network services | D115: Standard control services | E115: Alternative control services
C116: Service Life (Years)
C117: =CRY -> 2016-17 | D117: =CRY -> 2016-17 | E117: 2016-17
B118: ESTIMATED SERVICE LIFE OF NEW ASSETS
A119: DRAB1401 | B119: Overhead network assets less than 33kV (wires and poles) | C119: 35 | D119: 35 | E119: 0
A120: DRAB1402 | B120: Underground network assets less than 33kV (cables) | C120: 60 | D120: 60 | E120: 0
A121: DRAB1403 | B121: Distribution substations including transformers | C121: 40 | D121: 40 | E121: 0
A122: DRAB1404 | B122: Overhead network assets 33kV and above (wires and towers / poles etc) | C122: 50 | D122: 50 | E122: 0
A123: DRAB1405 | B123: Underground network assets 33kV and above(cables, ducts etc) | C123: 60 | D123: 60 | E123: 0
A124: DRAB1406 | B124: Zone substations and transformers | C124: 40 | D124: 40 | E124: 0
A125: DRAB1407 | B125: Meters | C125: 0 | D125: 0 | E125: 11.36321065
A126: DRAB1408 | B126: "Other" assets with long lives | C126: 40 | D126: 33.83017481 | E126: 20
A127: DRAB1409 | B127: "Other" assets with short lives | C127: 5.047732786 | D127: 5.306044618 | E127: 5.047732786
B128: ESTIMATED RESIDUAL SERVICE LIFE
A129: DRAB1501 | B129: Overhead network assets less than 33kV (wires and poles) | C129: 14.0756695 | D129: 14.0756695 | E129: 0
A130: DRAB1502 | B130: Underground network assets less than 33kV (cables) | C130: 36.84660376 | D130: 36.84660376 | E130: 0
A131: DRAB1503 | B131: Distribution substations including transformers | C131: 17.68139574 | D131: 17.68139574 | E131: 0
A132: DRAB1504 | B132: Overhead network assets 33kV and above (wires and towers / poles etc) | C132: 28.52703363 | D132: 28.52703363 | E132: 0
A133: DRAB1505 | B133: Underground network assets 33kV and above (cables, ducts etc) | C133: 34.1349075 | D133: 34.1349075 | E133: 0
A134: DRAB1506 | B134: Zone substations and transformers | C134: 13.52402487 | D134: 13.52402487 | E134: 0
A135: DRAB1507 | B135: Meters | C135: 0 | D135: 0 | E135: 13.9032603
A136: DRAB1508 | B136: "Other" assets with long lives | C136: 21.16524389 | D136: 9.937546943 | E136: 6.187619955
A137: DRAB1509 | B137: "Other" assets with short lives | C137: 0.6000526047 | D137: 0.698700732 | E137: 0.6000526047

Sheet 3.4 Operational data
B1: REGULATORY REPORTING STATEMENT
B2: =dms_TradingName -> Australian Distribution Co.
B3: =CONCATENATE("Benchmarking RIN response ",CRY) -> Benchmarking RIN response 2016-17
B4: 3.4 OPERATIONAL DATA
B6: There are THREE tables on this worksheet. Each table has been grouped for ease of navigation. See the Instructions sheet on how to group or ungroup tables.
B8: 3.4.1 - ENERGY DELIVERY
D9: Standard control services
D10: VOLUME (0's)
C11: Units | D11: =CRY -> 2016-17
A12: DOPED01 | B12: Total energy delivered | C12: GWh | D12: 4192.745002
B15: 3.4.1.1 - Energy grouping - delivery by chargeable quantity
A16: DOPED0201 | B16: Energy Delivery where time of use is not a determinant | C16: GWh | D16: 2770.864107
A17: DOPED0202 | B17: Energy Delivery at On-peak times | C17: GWh | D17: 644.148957
A18: DOPED0203 | B18: Energy Delivery at Shoulder times | C18: GWh | D18: 227.022105
A19: DOPED0204 | B19: Energy Delivery at Off-peak times | C19: GWh | D19: 466.154053
A20: DOPED0205 | B20: Controlled load energy deliveries | C20: GWh | D20: 53.187024
A21: DOPED0206 | B21: Energy Delivery to unmetered supplies | C21: GWh | D21: 31.368756
B23: 3.4.1.2 - Energy - received from TNSP and other DNSPs by time of receipt
A24: DOPED0301 | B24: Energy into DNSP network at On-peak times | C24: GWh | D24: 2163.520735
A25: DOPED0302 | B25: Energy into DNSP network at Shoulder times | C25: GWh | D25: 769.1184078
A26: DOPED0303 | B26: Energy into DNSP network at Off-peak times | C26: GWh | D26: 1294.806583
A27: DOPED0304 | B27: Energy received from TNSP and other DNSPs not included in the above categories | C27: GWh
B29: 3.4.1.3 - Energy - received into DNSP system from embedded generation by time of receipt
A30: DOPED0401 | B30: Energy into DNSP network at On-peak times from non-residential embedded generation | C30: GWh | D30: 36.536793
A31: DOPED0402 | B31: Energy into DNSP network at Shoulder times from non-residential embedded generation | C31: GWh | D31: 14.601747
A32: DOPED0403 | B32: Energy into DNSP network at Off-peak times from non-residential embedded generation | C32: GWh | D32: 29.190754
A33: DOPED0404 | B33: Energy received from embedded generation not included in above categories from non-residential embedded generation | C33: GWh | D33: 4.068481
A34: DOPED0405 | B34: Energy into DNSP network at On-peak times from residential embedded generation | C34: GWh | D34: 0.001888
A35: DOPED0406 | B35: Energy into DNSP network at Shoulder times from residential embedded generation | C35: GWh | D35: 0.000827
A36: DOPED0407 | B36: Energy into DNSP network at Off-peak times from residential embedded generation | C36: GWh | D36: 3.9e-05
A37: DOPED0408 | B37: Energy received from embedded generation not included in above categories from residential embedded generation | C37: GWh | D37: 74.415461
B39: 3.4.1.4 - Energy grouping - customer type or class
A40: DOPED0501 | B40: Residential customers energy deliveries | C40: GWh | D40: 1931.21725
A41: DOPED0502 | B41: Non residential customers not on demand tariffs energy deliveries | C41: GWh | D41: 910.0761346
A42: DOPED0503 | B42: Non-residential low voltage demand tariff customers energy deliveries | C42: GWh | D42: 519.473058
A43: DOPED0504 | B43: Non-residential high voltage demand tariff customers energy deliveries | C43: GWh | D43: 800.609803
A44: DOPED0505 | B44: Other Customer Class Energy Deliveries | C44: GWh | D44: 31.368756
B47: 3.4.2 - CUSTOMER NUMBERS
D48: Standard control services
D49: VOLUME (0's)
D50: =CRY -> 2016-17
B51: 3.4.2.1 - Distribution customer numbers by customer type or class
A52: DOPCN0101 | B52: Residential customer numbers | D52: 241954.8949
A53: DOPCN0102 | B53: Non residential customers not on demand tariff customer numbers | D53: 40714.2495
A54: DOPCN0103 | B54: Low voltage demand tariff customer numbers | D54: 999.9728
A55: DOPCN0104 | B55: High voltage demand tariff customer numbers | D55: 124.0587
A56: DOPCN0105 | B56: Unmetered Customer Numbers | D56: 3858.3242
A57: DOPCN0106 | B57: Other Customer Numbers | D57: 0
A58: DOPCN01 | B58: Total customer numbers | D58: =SUM(D52:D57) -> 287651.5001
B60: 3.4.2.2 - Distribution customer numbers by location on the network
A61: DOPCN0201 | B61: Customers on CBD network
A62: DOPCN0202 | B62: Customers on Urban network | D62: 111930.0819
A63: DOPCN0203 | B63: Customers on Short rural network | D63: 139454.3217
A64: DOPCN0204 | B64: Customers on Long rural network | D64: 36267.0964
A65: DOPCN02 | B65: Total customer numbers | D65: =SUM(D61:D64) -> 287651.5
B67: 3.4.2.3 - Distribution customer numbers by TasNetworks (D) feeder categories (TasNetworks (D) only)
B68: Critical Infrastructure | D68: 1880
B69: High Density Commercial | D69: 4677
B70: Urban | D70: 193013
B71: High Density Rural | D71: 43742
B72: Low Density Rural | D72: 44340
B73: Total customer numbers | D73: =SUM(D68:D72) -> 287652
B75: 3.4.2.4 - Unmetered Supply TasNetworks (D) only)
A76: DOPCN0301 | B76: Number of unmetered connections reported in customer numbers in the economic benchmarking RIN | D76: 3858.3242
A77: DOPCN0302 | B77: Unmetered connections not reported in customer numbers in the economic benchmarking RIN | D77: 0
A78: DOPCN0303 | B78: Total unmetered connections | D78: 3858.3242
B81: 3.4.3 - SYSTEM DEMAND
D82: Standard control services
D83: VOLUME (0's)
C84: Units | D84: =CRY -> 2016-17
B85: 3.4.3.1 - Annual system maximum demand characteristics at the zone substation level – MW measure
A86: DOPSD0101 | B86: Non-coincident Summated Raw System Annual Maximum Demand | C86: MW | D86: 230.0759996
A87: DOPSD0102 | B87: Non–coincident Summated Weather Adjusted System Annual Maximum Demand 10% POE | C87: MW | D87: 243.2814651
A88: DOPSD0103 | B88: Non–coincident Summated Weather Adjusted System Annual Maximum Demand 50% POE | C88: MW | D88: 237.1001835
A89: DOPSD0104 | B89: Coincident Raw System Annual Maximum Demand | C89: MW | D89: 224.3110009
A90: DOPSD0105 | B90: Coincident Weather Adjusted System Annual Maximum Demand 10% POE | C90: MW | D90: 237.5164664
A91: DOPSD0106 | B91: Coincident Weather Adjusted System Annual Maximum Demand 50% POE | C91: MW | D91: 231.3351848
B93: 3.4.3.2 - Annual system maximum demand characteristics at the transmission connection point – MW measure
A94: DOPSD0107 | B94: Non-coincident Summated Raw System Annual Maximum Demand | C94: MW | D94: 1064.268376
A95: DOPSD0108 | B95: Non–coincident Summated Weather Adjusted System Annual Maximum Demand 10% POE | C95: MW | D95: 1118.154737
A96: DOPSD0109 | B96: Non–coincident Summated Weather Adjusted System Annual Maximum Demand 50% POE | C96: MW | D96: 1092.931335
A97: DOPSD0110 | B97: Coincident Raw System Annual Maximum Demand | C97: MW | D97: 945.93025
A98: DOPSD0111 | B98: Coincident Weather Adjusted System Annual Maximum Demand 10% POE | C98: MW | D98: 999.8166113
A99: DOPSD0112 | B99: Coincident Weather Adjusted System Annual Maximum Demand 50% POE | C99: MW | D99: 974.5932087
B101: 3.4.3.3 - Annual system maximum demand characteristics at the zone substation level – MVA measure
A102: DOPSD0201 | B102: Non–coincident Summated Raw System Annual Maximum Demand | C102: MVA | D102: 232.4626877
A103: DOPSD0202 | B103: Non–coincident Summated Weather Adjusted System Annual Maximum Demand 10% POE | C103: MVA | D103: 245.6681532
A104: DOPSD0203 | B104: Non–coincident Summated Weather Adjusted System Annual Maximum Demand 50% POE | C104: MVA | D104: 239.4868716
A105: DOPSD0204 | B105: Coincident Raw System Annual Maximum Demand | C105: MVA | D105: 226.7872487
A106: DOPSD0205 | B106: Coincident Weather Adjusted System Annual Maximum Demand 10% POE | C106: MVA | D106: 239.9927142
A107: DOPSD0206 | B107: Coincident Weather Adjusted System Annual Maximum Demand 50% POE | C107: MVA | D107: 233.8114326
B109: 3.4.3.4 - Annual system maximum demand characteristics at the transmission connection point – MVA measure
A110: DOPSD0207 | B110: Non–coincident Summated Raw System Annual Maximum Demand | C110: MVA | D110: 1084.74345
A111: DOPSD0208 | B111: Non–coincident Summated Weather Adjusted System Annual Maximum Demand 10% POE | C111: MVA | D111: 1138.629811
A112: DOPSD0209 | B112: Non–coincident Summated Weather Adjusted System Annual Maximum Demand 50% POE | C112: MVA | D112: 1113.406408
A113: DOPSD0210 | B113: Coincident Raw System Annual Maximum Demand | C113: MVA | D113: 955.1434548
A114: DOPSD0211 | B114: Coincident Weather Adjusted System Annual Maximum Demand 10% POE | C114: MVA | D114: 1009.029816
A115: DOPSD0212 | B115: Coincident Weather Adjusted System Annual Maximum Demand 50% POE | C115: MVA | D115: 983.8064135
B117: 3.4.3.5 - Power factor conversion between MVA and MW
A118: DOPSD0301 | B118: Average overall network power factor conversion between MVA and MW | C118: Factor | D118: 0.9815579187
A119: DOPSD0302 | B119: Average power factor conversion for low voltage distribution lines | C119: Factor | D119: 0.9815579187
A120: DOPSD0303 | B120: Average power factor conversion for 3.3 kV lines | C120: Factor
A121: DOPSD0304 | B121: Average power factor conversion for 6.6 kV lines | C121: Factor | D121: 0.4931257005
A122: DOPSD0305 | B122: Average power factor conversion for 7.6 kV lines | C122: Factor
A123: DOPSD0306 | B123: Average power factor conversion for 11 kV lines | C123: Factor | D123: 0.9807787114
A124: DOPSD0307 | B124: Average power factor conversion for SWER lines | C124: Factor | D124: 0.981772914
A125: DOPSD0308 | B125: Average power factor conversion for 22 kV lines | C125: Factor | D125: 0.981772914
A126: DOPSD0309 | B126: Average power factor conversion for 33 kV lines | C126: Factor | D126: 0.9900625799
A127: DOPSD0310 | B127: Average power factor conversion for 44 kV lines | C127: Factor | D127: 0.9262844378
A128: DOPSD0311 | B128: Average power factor conversion for 66 kV lines | C128: Factor
A129: DOPSD0312 | B129: Average power factor conversion for 110 kV lines | C129: Factor
A130: DOPSD0313 | B130: Average power factor conversion for 132 kV lines | C130: Factor
A131: DOPSD0314 | B131: Average power factor conversion for 220 kV lines | C131: Factor
B133: 3.4.3.6 - Demand supplied (for customers charged on this basis) – MW measure
A134: DOPSD0401 | B134: Summated Chargeable Contracted Maximum Demand | C134: MW | D134: 0
A135: DOPSD0402 | B135: Summated Chargeable Measured Maximum Demand | C135: MW | D135: 0
B137: 3.4.3.7 - Demand supplied (for customers charged on this basis) – MVA measure
A138: DOPSD0403 | B138: Summated Chargeable Contracted Maximum Demand | C138: MVA | D138: 197.1920457
A139: DOPSD0404 | B139: Summated Chargeable Measured Maximum Demand | C139: MVA | D139: 167.2734304

Sheet 3.5 Physical assets
B1: REGULATORY REPORTING STATEMENT
B2: =dms_TradingName -> Australian Distribution Co.
B3: =CONCATENATE("Benchmarking RIN response ",CRY) -> Benchmarking RIN response 2016-17
B4: 3.5 PHYSICAL ASSETS
B6: There are THREE tables on this worksheet. Each table has been grouped (and sub-grouped) for ease of navigation. See the Instructions sheet on how to group or ungroup tables.
B8: 3.5.1 - NETWORK CAPACITIES
C9: VOLUME in KM's (0's)
C10: =CRY -> 2016-17
B11: Circuit length (kilometers)
B12: 3.5.1.1 - Overhead network length of circuit at each voltage
A13: DPA0101 | B13: Overhead low voltage distribution | C13: 4920.393
A14: DPA0102 | B14: Overhead 2.2 kV | C14: 0
A15: DPA0103 | B15: Overhead 6.6kv | C15: 6.077
A16: DPA0104 | B16: Overhead 7.6 kV | C16: 0
A17: DPA0105 | B17: Overhead 11 kV | C17: 2970.357
A18: DPA0106 | B18: Overhead SWER | C18: 471.904
A19: DPA0107 | B19: Overhead 22 kV | C19: 11698.053
A20: DPA0108 | B20: Overhead 33 kV | C20: 87.157
A21: DPA0109 | B21: Overhead 44 kV | C21: 46.65
A22: DPA0110 | B22: Overhead 66 kV | C22: 0
A23: DPA0111 | B23: Overhead 110kV | C23: 0
A24: DPA0112 | B24: Overhead 132 kV | C24: 0
A25: DPA0113 | B25: Overhead 220kV | C25: 0
A26: DPA0114 | B26: Other | C26: 0
A27: DPA01 | B27: Total overhead circuit km | C27: =SUM(C9:C26) -> 20200.591
B28: 3.5.1.2 - Underground network circuit length at each voltage
A29: DPA0201 | B29: Underground low voltage distribution | C29: 1279.289
A30: DPA0202 | B30: Underground 5 kV | C30: 0
A31: DPA0203 | B31: Underground 6.6 Kv | C31: 0.105
A32: DPA0204 | B32: Underground 7.6 kV | C32: 0
A33: DPA0205 | B33: Underground 11 kV | C33: 636.198
A34: DPA0206 | B34: Underground SWER | C34: 5.919
A35: DPA0207 | B35: Underground 22 kV | C35: 529.788
A36: DPA0208 | B36: Underground 33 kV | C36: 73.123
A37: DPA0209 | B37: Underground 66 kV | C37: 0
A38: DPA0210 | B38: Underground 110 kV | C38: 0
A39: DPA0211 | B39: Underground 132 kV | C39: 0
A40: DPA0212 | B40: Other | C40: 0
A41: DPA02 | B41: Total underground circuit km | C41: =SUM(C29:C40) -> 2524.422
C42: VOLUME in MVA (0's)
B43: Circuit Capacity (MVA) | C43: =CRY -> 2016-17
B44: 3.5.1.3 - Estimated overhead network weighted average MVA capacity by voltage class
A45: DPA0301 | B45: Overhead low voltage distribution | C45: 0.134
A46: DPA0302 | B46: Overhead 6.6 kV | C46: 7.81
A47: DPA0303 | B47: Overhead 7.6 kV | C47: 0
A48: DPA0304 | B48: Overhead 11 kV | C48: 4.265
A49: DPA0305 | B49: Overhead SWER | C49: 0.67
A50: DPA0306 | B50: Overhead 22 kV | C50: 7.379
A51: DPA0307 | B51: Overhead 33 kV | C51: 23.162
A52: DPA0308 | B52: Overhead 44 kV | C52: 29.703
A53: DPA0309 | B53: Overhead 66 kV | C53: 0
A54: DPA0310 | B54: Overhead 110 kV | C54: 0
A55: DPA0311 | B55: Overhead 132 kV | C55: 0
A56: DPA0312 | B56: Overhead 220 kV | C56: 0
A57: DPA0313 | B57: Other | C57: 0.13
B58: 3.5.1.4 - Estimated underground network weighted average MVA capacity by voltage class
A59: DPA0401 | B59: Underground low voltage distribution | C59: 0.261
A60: DPA0402 | B60: Underground 5 kV | C60: 0
A61: DPA0403 | B61: Underground 6.6 kV | C61: 3.211
A62: DPA0404 | B62: Underground 7.6 kV | C62: 0
A63: DPA0405 | B63: Underground 11 kV | C63: 5.9
A64: DPA0406 | B64: Underground SWER | C64: 0.432
A65: DPA0407 | B65: Underground 12.7 kV | C65: 0
A66: DPA0408 | B66: Underground 22 kV | C66: 11.371
A67: DPA0409 | B67: Underground 33 kV | C67: 25.95
A68: DPA0410 | B68: Underground 66 kV | C68: 0
A69: DPA0411 | B69: Underground 110 kV | C69: 0
A70: DPA0412 | B70: Underground 132 kV | C70: 0
A71: DPA0413 | B71: Other | C71: 0.476
B75: 3.5.2 - TRANSFORMER CAPACITIES
C76: VOLUME in MVA (0's)
C77: =CRY -> 2016-17
B78: 3.5.2.1 - Distribution transformer total installed capacity
A79: DPA0501 | B79: Distribution transformer capacity owned by utility | C79: 3715.417
A80: DPA0502 | B80: Distribution transformer capacity owned by High Voltage Customers | C80: 197.192
A81: DPA0503 | B81: Cold spare capacity included in DPA0501 | C81: 40.761
B82: 3.5.2.2 - Zone substation transformer capacity
A83: DPA0601 | B83: Total installed capacity for first step transformation where there are two steps to reach distribution voltage | C83: 0
A84: DPA0602 | B84: Total installed capacity for second step transformation where there are two steps to reach distribution voltage | C84: 0
A85: DPA0603 | B85: Total zone substation transformer capacity where there is only a single step transformation to reach distribution voltage | C85: 675
A86: DPA0604 | B86: Total zone substation transformer capacity | C86: 675
A87: DPA0605 | B87: Cold spare capacity of zone substation transformers included in DPA0604 | C87: 0
B88: 3.5.2.3 - Distribution - other transformer capacity
B89: Distribution other - transformer capacity owned by utility | C89: 542
B93: 3.5.3 - PUBLIC LIGHTING
C94: VOLUME (0's)
C95: =CRY -> 2016-17
A96: DPA0701 | B96: Public lighting luminaires | C96: 49243
A97: DPA0702 | B97: Public lighting poles | C97: 1677
A98: DPA0703 | B98: Public lighting columns | C98: 10668

Sheet 3.6 Quality of service
B1: REGULATORY REPORTING STATEMENT
B2: =dms_TradingName -> Australian Distribution Co.
B3: =CONCATENATE("Benchmarking RIN response ",CRY) -> Benchmarking RIN response 2016-17
B4: 3.6 QUALITY OF SERVICE DATA
B7: 3.6.1 - RELIABILITY
D8: (0's)
C9: Units | D9: =CRY -> 2016-17
B10: INCLUSIVE OF MEDs
A11: DQS0101 | B11: Whole of network unplanned SAIDI | C11: minutes/customer | D11: 265.24
A12: DQS0102 | B12: Whole of network unplanned SAIDI excluding excluded outages | C12: minutes/customer | D12: 262.343
A13: DQS0103 | B13: Whole of network unplanned SAIFI | C13: interruptions/customer | D13: 1.795
A14: DQS0104 | B14: Whole of network unplanned SAIFI excluding excluded outages | C14: interruptions/customer | D14: 1.742
B15: EXCLUSIVE OF MEDs
A16: DQS0105 | B16: Whole of network unplanned SAIDI | C16: minutes/customer | D16: 139.307
A17: DQS0106 | B17: Whole of network unplanned SAIDI excluding excluded outages | C17: minutes/customer | D17: 136.604
A18: DQS0107 | B18: Whole of network unplanned SAIFI | C18: interruptions/customer | D18: 1.501
A19: DQS0108 | B19: Whole of network unplanned SAIFI excluding excluded outages | C19: interruptions/customer | D19: 1.449
B21: 3.6.2 - ENERGY NOT SUPPLIED
D22: (0's)
C23: Units | D23: =CRY -> 2016-17
A24: DQS0201 | B24: Energy Not Supplied (planned) | C24: GWh | D24: 0.631
A25: DQS0202 | B25: Energy Not Supplied (unplanned) | C25: GWh | D25: 1.036
A26: DQS02 | B26: Total | D26: =SUM(D24:D25) -> 1.667
B28: 3.6.3 - SYSTEM LOSSES
D29: (0's)
C30: Unit | D30: =CRY -> 2016-17
A31: DQS03 | B31: System losses | C31: % | D31: 0.0441
B33: 3.6.4 - CAPACITY UTILISATION
D34: (0's)
C35: Unit | D35: =CRY -> 2016-17
A36: DQS04 | B36: Overall utilisation | C36: % | D36: 0.3444

Sheet 3.7 Operating environment
B1: REGULATORY REPORTING STATEMENT
B2: =dms_TradingName -> Australian Distribution Co.
B3: =CONCATENATE("Benchmarking RIN response ",CRY) -> Benchmarking RIN response 2016-17
B4: 3.7 OPERATING ENVIRONMENT FACTORS
B7: 3.7.1 - DENSITY FACTORS
D8: (0's)
C9: Units | D9: =CRY -> 2016-17
A10: DOEF0101 | B10: Customer density | C10: Customer / km | D10: 14.23
A11: DOEF0102 | B11: Energy density | C11: MWh/customer | D11: 14.58
A12: DOEF0103 | B12: Demand density | C12: kVA / customer | D12: 0.81
B14: 3.7.2 - TERRAIN FACTORS
D15: (0's)
D16: =CRY -> 2016-17
A17: DOEF0201 | B17: Rural proportion | C17: % | D17: 0.924
A18: DOEF0202 | B18: Urban and CBD vegetation maintenance spans | C18: Number of spans | D18: 2495
A19: DOEF0203 | B19: Rural vegetation maintenance spans | C19: Number of spans | D19: 31349
A20: DOEF0204 | B20: Total vegetation maintenance spans | C20: Number of spans | D20: 33844
A21: DOEF0205 | B21: Total number of spans | C21: Number of spans | D21: 232109
A22: DOEF0206 | B22: Average urban and CBD vegetation maintenance span cycle | C22: Years | D22: 1
A23: DOEF0207 | B23: Average rural vegetation maintenance span cycle | C23: Years | D23: 1
A24: DOEF0208 | B24: Average number of trees per urban and CBD vegetation maintenance span | C24: Trees | D24: 6.8
A25: DOEF0209 | B25: Average number of trees per rural vegetation maintenance span | C25: Trees | D25: 21.8
A26: DOEF0210 | B26: Average number of defects per urban and CBD vegetation maintenance span | C26: Defects | D26: 3.2
A27: DOEF0211 | B27: Average number of defects per rural vegetation maintenance span | C27: Defects | D27: 4.8
A28: DOEF0212 | B28: Tropical proportion | C28: Spans | D28: 0
A29: DOEF0213 | B29: Standard vehicle access | C29: km | D29: 749.85
A30: DOEF0214 | B30: Bushfire risk | C30: Spans | D30: 9421
B32: 3.7.3 - SERVICE AREA FACTORS
D33: (0's)
D34: =CRY -> 2016-17
A35: DOEF0301 | B35: Route Line length | C35: km | D35: 20210.06

Sheet NSP amendments
B1: =CONCATENATE(dms_TradingName," data amendments") -> Australian Distribution Co. data amendments
B2: Amended Table | C2: Comments
